Cogmind - Beta 9.2 @@@ ROGUE MODE // 2019.11.23 @ 23:33:32 Player: Valguris Result: Escaped! Performance ------------- Evolutions (9) 4500 Regions Visited (42) 8400 Robots Destroyed (821) 4105 Value Destroyed (46128) 46128 Prototype IDs (148) 2960 Alien Tech Used (12) 2400 Bonus (53582) 53582 TOTAL SCORE: 122075 Bonus ------- Triggered High Security 1000 High Alert Combat Kills 17405 Follower Combat Kills 3477 Entered Garrisons 600 Used RIF Installer 1500 Network Hubs Disabled 800 Exposed GOLEM Chamber 1000 Met Zhirov 300 Built Enhanced Grunts 300 A7 Reached Mainframe 300 Met R17 at Cetus 500 Found Hidden Lab 3000 Met R17 at Research 2000 Scanned by Researcher 1000 Pursued by Intercept 500 Acquired SGEMP 2000 Met Sigix 2000 Delivered SGEMP 2000 Destroyed MAIN.C Guards 500 Met MAIN.C 5000 Destroyed MAIN.C Shell 5000 Zhirov Destroyed MAIN.C 3000 Met Architect 300 Destroyed A8 300 Destroyed A6 400 Destroyed A5 500 Win 3000 Friendly Fire -4100 Cogmind --------- Core Integrity 284/1850 Matter 71/300 Energy 99/100 System Corruption 0% Temperature Cool (0) Movement Core (50) Location To Epsilon Eridani Parts ------- > --- POWER (2) -------- (None) > --- PROPULSION (6) --- (None) > --- UTILITY (16) ----- (None) > --- WEAPON (2) ------- (None) > --- INVENTORY (4) ---- Combat Linear Gravjet Enhanced Nova Cannon Multirail Peak State ------------ > --- POWER ------------ Vortex Chain Reactor > --- PROPULSION ------- Biometal Leg Myomer Exoskeleton > --- UTILITY ---------- Coolant Network Large Storage Unit Large Storage Unit Large Storage Unit High-capacity Storage Unit High-capacity Storage Unit High-capacity Storage Unit Advanced Signal Interpreter Experimental Targeting Computer Experimental Target Analyzer Experimental Core Analyzer Centrium Heavy Armor Plating Thermal Barrier Experimental Force Field > --- WEAPON ----------- Core Stripper > --- INVENTORY -------- Reinforced Antimatter Reactor Light Quantum Reactor Vortex Chain Reactor Biometal Leg Improved Gyrokinetic Inverter Improved Gyrokinetic Inverter Improved Gyrokinetic Inverter Combat Linear Gravjet Large Storage Unit Large Storage Unit Experimental Energy Well Improved Matter Compressor Experimental Sensor Array Improved Armor Integrity Analyzer Quantum Capacitor EM Dispersion Field Relay Coupler [NC] Relay Coupler [NC] Relay Coupler [Grunt] Transdimensional Reconstructor Transdimensional Reconstructor Long-range Proton Cannon HERF Cannon EMDS EMDS Potential Cannon Warp Cannon Hypervelocity Multirail Compact Linear Accelerator Graviton Cannon Improved Proton Missile Launcher Fusion Bomb Launcher Z-bomb Delivery System Supercharged Sigix Terminator Guided Remote Datajack Molecular Deconstructor SGEMP Prototype [Rating: 223] Favorites ----------- Power Antimatter Reactor Engine Reinforced Ion Engine Power Core Fission Core Reactor Antimatter Reactor Propulsion Heavy Treads Treads Heavy Treads Leg Myomer Exoskeleton Wheel Wheel Hover Unit Improved Gyrokinetic Inverter Utility Large Storage Unit Device Experimental Sensor Array Storage Large Storage Unit Processor Improved Signal Interpreter Hackware Relay Coupler [NC] Protection Improved Medium Armor Plating Artifact Phase Armor Weapon Assembled Focal Cannon Energy Gun Tesla Rifle Energy Cannon Assembled Focal Cannon Ballistic Gun Assault Rifle Ballistic Cannon Improved Light Cannon Launcher Heavy Rocket Launcher Special Weapon Remote Datajack Impact Weapon Core Stripper Slashing Weapon Katana Special Melee Weapon Improved Datajack Build | -11 -10 -10 -9 -9 -9 -8 -8 -8 -8 -8 -7 -7 -7 -7 -7 -7 -7 -6 -6 -6 -6 -6 -6 -5 -5 -5 -5 -4 -4 -4 -4 -4 -4 -3 -3 -3 -2 -2 -2 -1 -1 -1 ------- Run | Scr Mat Min Mat Min Exi Min Mat Gar Mat Gar Fac Was Fac Low Low Zio Dee Pro Fac Ext Cet Arc Hub Fac Upp Upp Zhi Pro Fac Was Fac Arm Lab Res Qua Gar Res Tes Sec Acc Com Ac0 Slots Evolved 18 | . . . 2 . . . 2 . . . 2 . . . . . . . 2 . . . . 2 . . . . 2 . . . . 2 . . 2 . . 2 . . Power 1 | . . . . . . . . . . . . . . . . . . . . . . . . 1 . . . . . . . . . . . . . . . . . . Propulsion 4 | . . . . . . . . . . . . . . . . . . . 1 . . . . . . . . . . . . . . 1 . . . . . 2 . . Utility 13 | . . . 2 . . . 2 . . . 2 . . . . . . . 1 . . . . 1 . . . . 2 . . . . 1 . . 2 . . . . . Weapon . | . . . . . . . . . . . . . . . . . . . . . . . . . . . . . . . . . . . . . . . . . . . Parts Attached 1161 | 6 2 . 24 3 4 6 8 17 34 11 52 6 36 9 30 31 29 2 1 12 13 5 38 65 24 30 16 7 8 4 46 41 6 26 52 31 69 88 137 7 81 44 Power 34 | 1 . . 2 . . . . . 3 . 2 1 . . 1 . 2 . . . . . 1 3 . 1 . . . . . . . . . . 4 5 3 . 2 3 Engine 9 | 1 . . 2 . . . . . 3 . 2 . . . . . . . . . . . . 1 . . . . . . . . . . . . . . . . . . Core 1 | . . . . . . . . . . . . . . . . . . . . . . . . . . 1 . . . . . . . . . . . . . . . . Reactor 24 | . . . . . . . . . . . . 1 . . 1 . 2 . . . . . 1 2 . . . . . . . . . . . . 4 5 3 . 2 3 Propulsion 78 | 2 . . 6 . . . 2 2 5 . 3 1 2 . . . 4 . . 2 2 . 3 4 . 2 . 1 . 1 7 1 . 1 1 . 2 4 3 1 8 8 Treads 50 | 2 . . 6 . . . 2 2 5 . 3 1 1 . . . 3 . . 1 2 . 3 4 . 2 . 1 . 1 5 1 . 1 1 . 2 1 . . . . Leg 8 | . . . . . . . . . . . . . . . . . 1 . . . . . . . . . . . . . . . . . . . . 3 3 1 . . Wheel 2 | . . . . . . . . . . . . . 1 . . . . . . 1 . . . . . . . . . . . . . . . . . . . . . . Hover 18 | . . . . . . . . . . . . . . . . . . . . . . . . . . . . . . . 2 . . . . . . . . . 8 8 Flight . | . . . . . . . . . . . . . . . . . . . . . . . . . . . . . . . . . . . . . . . . . . . Utility 603 | 1 2 . 8 1 3 1 3 2 6 3 11 2 20 6 17 14 17 2 1 10 11 5 24 29 16 27 9 6 7 2 33 37 3 25 21 13 34 43 75 1 37 15 Device 372 | . . . 4 . 1 . . . 3 . 4 2 6 3 12 8 8 2 . 10 7 5 21 12 12 17 5 6 6 . 20 22 2 14 11 5 24 26 58 1 28 7 Storage 58 | 1 2 . 2 1 1 . 1 . . 1 1 . 7 . . 2 4 . . . . . . 2 . 1 3 . . . 2 . 1 5 . 3 2 3 7 . 3 3 Processor 12 | . . . . . . . . . . . . . . 1 . . . . . . . . . 1 . . . . . . 1 . . . 1 . 2 3 1 . 2 . Hackware 29 | . . . . . . . 1 . 3 2 1 . 1 2 5 . . . . . . . 1 2 . . . . . . 1 . . . 1 3 2 1 3 . . . Protection 130 | . . . 2 . 1 1 1 2 . . 5 . 6 . . 4 5 . 1 . 4 . 2 12 4 9 1 . 1 2 9 15 . 6 8 2 3 9 6 . 4 5 Artifact 2 | . . . . . . . . . . . . . . . . . . . . . . . . . . . . . . . . . . . . . 1 1 . . . . Weapon 446 | 2 . . 8 2 1 5 3 13 20 8 36 2 14 3 12 17 6 . . . . . 10 29 8 . 7 . 1 1 6 3 3 . 30 18 29 36 56 5 34 18 Energy Gun 20 | 1 . . 1 . . . . . 1 . 1 . . . . . . . . . . . . 9 3 . 3 . . . . . . . . . 1 . . . . . Energy Cannon 222 | . . . 5 1 . 2 2 2 5 2 19 1 7 . 4 10 4 . . . . . 3 9 5 . 1 . . . 3 1 2 . 23 13 20 21 29 2 16 10 Ballistic Gun 8 | 1 . . 1 . . . . . . . . . . . . . . . . . . . 2 1 . . . . . . . . . . . . . . 1 . . 2 Ballistic Cannon 46 | . . . 1 . . 1 . 6 4 . . . 4 2 2 1 1 . . . . . . . . . . . . . . . . . . . 1 6 10 1 3 3 Launcher 53 | . . . . 1 . 2 1 5 3 1 3 . . . 1 5 1 . . . . . 4 5 . . . . . . . . . . 3 2 5 1 6 . 1 3 Special Weapon 61 | . . . . . . . . . . . 1 1 . 1 4 1 . . . . . . 1 5 . . 3 . 1 1 3 2 1 . 4 3 2 3 8 2 14 . Impact Weapon 7 | . . . . . . . . . . . . . . . . . . . . . . . . . . . . . . . . . . . . . . 5 2 . . . Slashing Weapon 15 | . . . . . . . . . 3 2 6 . 3 . 1 . . . . . . . . . . . . . . . . . . . . . . . . . . . Piercing Weapon . | . . . . . . . . . . . . . . . . . . . . . . . . . . . . . . . . . . . . . . . . . . . Special Melee Weapon 14 | . . . . . 1 . . . 4 3 6 . . . . . . . . . . . . . . . . . . . . . . . . . . . . . . . Unidentified Prototypes 53 | . . . 3 . . . . . 3 . 1 . . . . 1 4 . . . 3 . 1 1 . . 3 . . 1 . 3 4 2 3 . 1 9 3 1 3 3 Parts Lost 132 | . . . 1 1 . 2 . 4 5 . 6 . 2 . 1 . 1 . . . 1 . 8 9 2 2 . . . . 3 1 . 1 1 2 14 12 8 1 3 41 Power 18 | . . . . . . . . . . . . . . . 1 . 1 . . . . . 1 2 . 1 . . . . . . . . . . 2 2 2 . 1 5 Propulsion 25 | . . . . . . . . . 2 . 2 . . . . . . . . . . . 3 1 . . . . . . 1 . . . . . 2 1 1 . 2 10 Utility 58 | . . . 1 . . 1 . 2 1 . 1 . 1 . . . . . . . 1 . 1 5 . 1 . . . . 2 1 . 1 1 1 6 8 2 1 . 20 Weapon 31 | . . . . 1 . 1 . 2 2 . 3 . 1 . . . . . . . . . 3 1 2 . . . . . . . . . . 1 4 1 3 . . 6 Highest Loss Streak 21 | . . . 1 1 . 1 . 2 3 . 2 . 1 . 1 . 1 . . . 1 . 5 6 2 1 . . . . 3 1 . 1 1 2 10 3 2 1 2 21 Average Slot Usage (%) 82 | . 95 100 98 100 90 87 80 81 80 80 79 77 70 83 83 80 83 92 80 84 89 93 90 91 94 88 76 70 73 58 67 71 70 73 75 79 81 83 76 78 92 60 Engine 2 | . 14 14 10 11 11 11 9 9 8 9 7 1 . . . . . . . . . . . . 5 5 3 . . . . . . . . . . . . . . . Reactor 4 | . . . . . . . . . . . . 5 7 7 7 7 7 7 6 6 6 6 6 9 5 2 . 5 5 5 5 5 5 4 4 4 5 7 4 7 7 4 Treads 10 | . 28 28 22 22 22 22 18 18 18 18 15 8 7 7 7 7 5 7 6 9 13 13 12 10 11 10 11 11 10 10 9 10 10 9 8 9 8 5 . . . . Device 9 | . . . 8 11 10 11 9 9 7 6 6 15 4 14 6 6 5 15 12 6 6 6 5 10 10 14 15 11 21 10 13 13 14 15 9 9 12 14 11 10 14 4 Storage 25 | . 23 28 22 29 17 11 17 18 18 18 15 15 22 30 30 27 32 38 33 33 33 33 33 25 29 23 20 17 15 15 15 15 18 20 27 33 29 25 25 23 22 15 Processor 4 | . . . . . . . . . . . . . . 7 7 7 7 7 6 6 6 6 5 3 5 5 5 5 2 . 1 5 5 4 4 4 5 13 12 11 10 7 Hackware 3 | . . . . . . . . . 7 11 11 7 1 . 7 4 . . . . . . . 6 5 5 5 5 5 5 6 5 5 4 7 4 6 3 4 3 . . Protection 4 | . . . 12 3 7 10 9 9 2 . 7 7 10 . . 2 5 . . 6 9 13 11 8 5 2 . . 1 5 4 5 2 4 3 3 3 3 3 3 7 5 Energy Gun 1 | . 14 14 1 . . . . . . . . . . . . . . . . . . . . 3 8 11 . . . . . . . . . . . . . . . . Energy Cannon 7 | . . . 18 14 11 5 9 3 8 8 12 7 9 6 2 6 9 15 13 13 13 13 12 6 2 . 1 11 8 1 9 9 7 9 8 8 6 3 3 2 1 1 Ballistic Cannon 1 | . . . . . . 8 9 13 5 . . . 3 6 6 . 3 . . . . . . . . . . . . . . . . . . . . . . 2 1 . Special Weapon 1 | . . . . . . . . . . . . 6 . 1 5 5 . . . . . . . . . . 3 . 1 4 . . . . . . . . . . 1 . Naked Turns 20 | . . . . . . . . . . . . . . . . . . . . . . . . . . . . . . . . . . . . . . . . . . 20 Heaviest Build 320 | 13 25 25 59 68 104 107 187 190 190 184 208 214 253 185 178 205 182 137 138 144 150 150 174 142 139 202 233 233 249 284 284 277 280 306 320 299 288 268 238 219 238 222 Greatest Support 160 | 40 40 40 40 40 40 40 44 44 44 44 44 70 70 70 70 70 70 70 70 100 110 110 110 103 103 103 103 103 93 93 102 107 107 155 155 155 155 150 132 128 128 160 Greatest Overweight (x) 12 | 1 . . 1 1 2 2 4 4 4 4 4 4 7 2 2 2 4 1 1 2 1 1 4 1 1 1 2 2 2 3 12 2 2 1 2 1 1 2 2 1 3 1 Average Overweight (x) 1 | . . . . 1 1 2 3 4 3 3 4 2 2 2 2 2 1 1 1 1 1 1 1 . 1 1 1 2 2 2 2 2 2 1 1 1 1 1 1 1 1 . Largest Inventory Capacity 72 | 6 12 12 16 22 36 24 44 44 44 44 64 44 58 44 44 44 44 30 30 30 30 30 30 30 30 50 58 44 44 44 64 44 52 68 54 72 52 48 46 46 46 38 Average Capacity 38 | 5 9 12 12 20 23 24 42 44 44 43 44 44 48 44 44 42 30 30 30 30 30 30 30 26 30 35 40 44 44 44 44 44 48 52 54 52 49 45 46 46 38 25 Most Carried 54 | 6 12 12 16 17 24 24 39 44 44 44 44 44 50 44 44 44 42 30 30 30 30 30 30 30 30 36 44 44 44 44 44 44 52 52 54 54 52 46 46 43 43 38 Average Carried 36 | 3 9 11 12 16 19 22 30 40 43 42 42 43 44 43 41 39 29 29 29 29 29 30 29 25 29 35 38 43 43 43 42 43 47 50 53 52 46 44 43 41 37 23 Final Capacity 54 | 6 12 12 16 22 24 24 44 44 44 44 44 44 44 44 44 44 30 30 30 30 30 30 30 30 30 36 44 44 44 44 44 44 52 54 54 52 44 46 46 46 38 4 Final Carried 54 | 6 12 12 16 16 24 23 38 44 44 44 44 44 44 44 40 43 30 30 29 30 30 30 22 30 30 35 42 44 44 44 44 44 52 51 54 52 44 45 45 41 37 3 Class Distribution -------------------- 65% | Hauler-Mutant 16% | Bothacker-Mutant 6% | Scavenger-Mutant 5% | Mutant 5% | Hauler-Skirmisher Dominant Class ---------------- Mutant | -10/Materials Mutant | -10/Mines Mutant | -9/Materials Hauler-Mutant | -9/Mines Hauler-Mutant | -9/Exiles Hauler-Mutant | -8/Mines Hauler-Mutant | -8/Materials Hauler-Mutant | -8/Garrison Bothacker-Mutant | -8/Materials Bothacker-Mutant | -8/Garrison Bothacker-Mutant | -7/Factory Bothacker-Mutant | -7/Waste Bothacker-Mutant | -7/Factory Bothacker-Mutant | -7/Lower Caves Bothacker-Mutant | -7/Lower Caves Hauler-Mutant | -7/Zion Hauler-Mutant | -7/Deep Caves Hauler-Mutant | -6/Proximity Caves Hauler-Mutant | -6/Factory Hauler-Mutant | -6/Extension Hauler-Mutant | -6/Cetus Hauler-Mutant | -6/Archives Hauler-Mutant | -6/Hub_04(d) Scavenger-Mutant | -5/Factory Hauler-Skirmisher | -5/Upper Caves Hauler-Skirmisher | -5/Upper Caves Hauler-Mutant | -5/Zhirov Hauler-Mutant | -4/Proximity Caves Hauler-Mutant | -4/Factory Hauler-Mutant | -4/Waste Hauler-Mutant | -4/Factory Hauler-Mutant | -4/Armory Hauler-Mutant | -4/Lab Hauler-Mutant | -3/Research Hauler-Mutant | -3/Quarantine Hauler-Mutant | -3/Garrison Hauler-Mutant | -2/Research Hauler-Mutant | -2/Testing Hauler-Mutant | -2/Section 7 Hauler-Mutant | -1/Access Scavenger-Mutant | -1/Command Scavenger-Mutant | -1/Access_0 Resources | -11 -10 -10 -9 -9 -9 -8 -8 -8 -8 -8 -7 -7 -7 -7 -7 -7 -7 -6 -6 -6 -6 -6 -6 -5 -5 -5 -5 -4 -4 -4 -4 -4 -4 -3 -3 -3 -2 -2 -2 -1 -1 -1 ----------- Run | Scr Mat Min Mat Min Exi Min Mat Gar Mat Gar Fac Was Fac Low Low Zio Dee Pro Fac Ext Cet Arc Hub Fac Upp Upp Zhi Pro Fac Was Fac Arm Lab Res Qua Gar Res Tes Sec Acc Com Ac0 Matter Collected 24640 | 260 14 247 284 156 40 254 44 610 517 215 568 40 719 163 394 947 260 52 . 125 125 46 632 913 436 396 284 383 109 180 751 395 . 407 548 423 1227 2643 6492 61 2190 90 Remotely . | . . . . . . . . . . . . . . . . . . . . . . . . . . . . . . . . . . . . . . . . . . . Salvage Created 43065 | . 14 405 988 70 . 473 111 572 1184 213 1387 700 1160 50 286 1037 325 161 . 812 195 273 1806 1629 706 697 284 348 109 867 2373 1034 . 805 1880 1900 2827 4040 7924 110 3220 90 Parts 1849 | . 1 15 69 28 . 27 8 39 64 20 58 19 34 6 11 74 4 6 . 46 16 9 82 88 18 27 14 20 4 12 103 49 . 37 84 83 115 115 292 7 137 8 Haulers Intercepted 15 | . . . 5 . . . . . 2 . . . 2 . . . . . . . . . . . . . . . . . 1 . . 1 . . 2 1 1 . . . Recyclers Shooed 16 | . . 1 . . . . . . 1 . . . 3 . . . . . . . . . 1 4 . . . . 1 . 2 . . 1 . . 1 . 1 . . . Parts Field Recycled . | . . . . . . . . . . . . . . . . . . . . . . . . . . . . . . . . . . . . . . . . . . . Retrieved Matter . | . . . . . . . . . . . . . . . . . . . . . . . . . . . . . . . . . . . . . . . . . . . Parts Self-Destructed 88 | . . . . . . . . . . . . . . 7 19 6 . 7 . . . . . . 1 16 12 20 . . . . . . . . . . . . . . Prevented 32 | . . . . . . . . . . . . . . . 6 . . . . . . . . . 9 17 . . . . . . . . . . . . . . . . Kills | -11 -10 -10 -9 -9 -9 -8 -8 -8 -8 -8 -7 -7 -7 -7 -7 -7 -7 -6 -6 -6 -6 -6 -6 -5 -5 -5 -5 -4 -4 -4 -4 -4 -4 -3 -3 -3 -2 -2 -2 -1 -1 -1 ------- Run | Scr Mat Min Mat Min Exi Min Mat Gar Mat Gar Fac Was Fac Low Low Zio Dee Pro Fac Ext Cet Arc Hub Fac Upp Upp Zhi Pro Fac Was Fac Arm Lab Res Qua Gar Res Tes Sec Acc Com Ac0 Combat Hostiles Destroyed 647 | . . 7 14 18 . 19 2 23 24 8 31 . 13 1 9 9 2 3 . 8 1 2 38 36 11 13 . 8 . 4 31 17 . 11 21 28 34 45 123 1 11 21 Melee 24 | . . . . . . . . . 11 1 8 . . . . . . . . . . . 1 2 . . . . . . . . . . . . . . 1 . . . Guns 28 | . . 7 2 . . . . . . . . . . . . . . . . . . . 1 7 1 10 . . . . . . . . . . . . . . . . Cannons 313 | . . . 12 . . 6 2 13 8 1 18 . 13 1 5 3 1 3 . 8 1 2 16 10 5 . . 8 . . 31 17 . 11 15 8 20 22 47 1 5 . AOE 162 | . . . . 18 . 13 . 10 5 6 4 . . . 4 1 . . . . . . 19 15 1 1 . . . . . . . . . 12 4 4 24 . 1 20 Classes Destroyed 32 | . 1 4 7 . . 3 . . . . 1 . 1 1 1 1 1 . . 1 . . 3 1 . . . . . 1 . . . . 1 . . 4 . . . . Worker 19 | . . . 1 1 . 2 . . 1 . . . 1 . . . . . . 2 . . 3 1 . . . . . . 2 . . . 1 . . 2 1 . 1 . Builder 17 | . . . 1 1 . . . . . . . . 1 . . . . . . 2 . . 2 1 . . . . . . 3 . . . 1 . 3 1 1 . . . Tunneler 3 | . . . . . . 1 . . 1 . . . . . . . . . . . . . . 1 . . . . . . . . . . . . . . . . . . Hauler 15 | . . . 5 . . . . . 2 . . . 2 . . . . . . . . . . . . . . . . . 1 . . 1 . . 2 1 1 . . . Recycler 18 | . . 4 . . . . . . . . . . 6 . . . . . . 1 . . . 2 . . . . 1 . 1 . . . 1 . . . 1 . 1 . Mechanic 6 | . . . . . . . . . . . . . . . . . . . . . . . 1 . . . . . . . . . . . . . . 1 3 . 1 . Operator 10 | . . . 1 . . . . . . . 1 . . . . . . . . . . 4 . 1 . . . . . . . . . . . . . . 3 . . . Watcher 39 | . 1 . 3 . . . . . 3 . 3 . 5 . . . . . . 2 2 . 1 4 . . . . . . 1 2 . . 1 . 5 2 3 1 . . Swarmer 124 | . . 4 . 18 . 6 . 11 5 4 10 . . . 7 . . . . . . . . 17 1 5 . 5 . . . 4 . 2 . 12 4 5 4 . . . Saboteur 5 | . . . . . . . . . . . . . . . . . . . . . . . . 1 . . . . . . . . . . . . . . 4 . . . Grunt 209 | . . . 9 . . 8 . 12 11 3 14 . 7 . 1 1 . 2 . 3 . . 14 8 4 5 . 1 . . 6 . . 5 6 8 10 21 47 . 3 . Brawler 23 | . . . . . . 2 . . . . 1 . . . . . . . . 1 . . 2 . . . . . . . . . . 1 . 4 2 1 9 . . . Duelist 26 | . . . 1 . . . . . 1 1 . . 1 . . 1 . . . . . . 2 3 . . . . . . . . . . . . . 1 14 . 1 . Protector 7 | . . . . . . . . . . . . . . . . . . . . . . . 3 . . . . . . . . . . . 1 . . 1 2 . . . Researcher 6 | . . . . . . . . . . . . . . . . . . . . . . . . . . . . . . . . . . . . . . 4 2 . . . Sentry 54 | . . . 4 . . . 2 . 6 . 2 . 1 . . . . . . 2 . 2 5 3 1 1 . 1 . . 5 2 . . 3 1 1 . 12 . . . Demolisher 1 | . . . . . . . . . . . . . 1 . . . . . . . . . . . . . . . . . . . . . . . . . . . . . Specialist 6 | . . . . . . . . . . . . . . . . . . . . . . . 1 . . . . . . . . 2 . . 3 . . . . . . . Hunter 49 | . . . . . . 3 . . 1 1 1 . . . . . . . . . 1 . 1 2 1 2 . . . . 8 2 . 2 . 2 8 3 9 . 2 . Programmer 70 | . . . . . . . . . . . 3 . 3 . 1 . . 1 . . . . 1 2 . . . 1 . . 12 7 . 1 4 2 9 8 14 1 . . Q-Series 2 | . . . . . . . . . . . . . . . . . . . . . . . . . . . . . . . . . . . . . . 2 . . . . Behemoth 3 | . . . . . . . . . . . . . . . . . . . . 1 . . 1 . . . . . . . . . . . . . . . 1 . . . Compactor 4 | . . . . . . . . . . . . . . . . . . . . . . . . . . . . . . 4 . . . . . . . . . . . . S7 Guard 2 | . . . . . . . . . . . . . . . . . . . . . . . . . . . . . . . . . . . . . . . 2 . . . M Guard 2 | . . . . . . . . . . . . . . . . . . . . . . . . . . . . . . . . . . . . . . . . . 2 . Enhanced Grunt 14 | . . . . . . . . . . . . . . . . . . . . . . . 1 . . . . . . . . . . . . . . . . . . 13 Enhanced Hunter 5 | . . . . . . . . . . . . . . . . . . . . . . . . . . . . . . . . . . . . . . . . . . 5 Lightning 11 | . . . . . . . . . . . . . . . . . . . . . . . 8 . . . . . . . . . . . 3 . . . . . . . Tracker 2 | . . . . . . . . . . . . . . . . . . . . . . . . . . . . . . . . . . . . . . . 2 . . . Combat Programmer 3 | . . . . . . . . . . . . . . . . . . . . . . . . . . . . . . . . . . . . . . . 1 . 2 . Investigator 1 | . . . . . . . . . . . . . . . . . . . . . . . . . . . . . . . . . . . . . . . 1 . . . Striker 2 | . . . . . . . . . . . . . . . . . . . . . . . . . . . . . . . . . . . . . . 2 . . . . Alpha 7 4 | . . . . . . . . . . . . . . . . . . . . . . . . . . . . . . . . . . . 1 . . 1 2 . . . Fortress 1 | . . . . . . . . . . . . . . . . . . . . . . . . . . . . . . . . . . . . . . 1 . . . . Zionite 28 | . . 1 . . . . . . . . . . . . . 27 . . . . . . . . . . . . . . . . . . . . . . . . . . Z-Technician 1 | . . . . . . . . . . . . . . . . . 1 . . . . . . . . . . . . . . . . . . . . . . . . . Samaritan 1 | . . . . . . . . . . . . . . . 1 . . . . . . . . . . . . . . . . . . . . . . . . . . . Tinkerer 2 | . . . . . . . . . . . . . . . . 2 . . . . . . . . . . . . . . . . . . . . . . . . . . Assembled 4 | . . 3 . . . . . . . . . . . . . . 1 . . . . . . . . . . . . . . . . . . . . . . . . . Golem 1 | . . . . . . . . . . . . . . . . . 1 . . . . . . . . . . . . . . . . . . . . . . . . . Thug 6 | . . . . . . . . . . . . . . . . 2 . . . . . . . . 4 . . . . . . . . . . . . . . . . . Savage 1 | . . . . . . . . . . . . . . . 1 . . . . . . . . . . . . . . . . . . . . . . . . . . . Guerrilla 1 | . . . . . . . . . . . . . . . . . . . . 1 . . . . . . . . . . . . . . . . . . . . . . Mutant 6 | . . . . . . . . . . . . . . 1 . 5 . . . . . . . . . . . . . . . . . . . . . . . . . . Best Kill Streak 23 | . 1 3 5 9 . 5 1 4 4 6 4 . 6 1 4 9 1 2 . 4 1 3 9 7 4 5 . 4 1 2 7 4 . 6 7 15 11 8 23 1 7 16 Combat Bots Only 21 | . . 3 3 8 . 5 1 4 3 6 4 . 3 1 4 2 1 2 . 4 1 1 8 5 4 5 . 4 . 2 6 4 . 6 6 15 9 5 21 1 5 16 Max Kills in Single Turn 16 | . 1 1 2 3 . 4 1 4 2 3 2 . 1 1 3 3 1 2 . 2 1 1 3 4 2 2 . 1 1 1 1 1 . 1 2 4 2 4 5 1 2 16 Gunslinging 1 | . . . . . . . . . . . . . . . . . . . . . . . . . . 1 . . . . . . . . . . . . . . . . Exploded 16 | . . . . 3 . 4 . 4 2 3 2 . . . 2 1 . . . . . . 3 3 1 1 . . . . . . . . . 4 2 4 4 . 1 16 Melee 1 | . . . . . . . . . 1 1 1 . . . . . . . . . . . 1 1 . . . . . . . . . . . . . . 1 . . . Uniques/NPCs Destroyed 7 | . . . . . . . . . . . . . . . . 2 . . . . 1 . . . . . . . . . . . . . . . . . . . 1 3 CL-ANK (-7/Zion) Imprinter (-7/Zion) A7 (-6/Cetus) MAIN.C Shell (-1/Command) A8 (-1/Access_0) A6 (-1/Access_0) A5 (-1/Access_0) Combat | -11 -10 -10 -9 -9 -9 -8 -8 -8 -8 -8 -7 -7 -7 -7 -7 -7 -7 -6 -6 -6 -6 -6 -6 -5 -5 -5 -5 -4 -4 -4 -4 -4 -4 -3 -3 -3 -2 -2 -2 -1 -1 -1 -------- Run | Scr Mat Min Mat Min Exi Min Mat Gar Mat Gar Fac Was Fac Low Low Zio Dee Pro Fac Ext Cet Arc Hub Fac Upp Upp Zhi Pro Fac Was Fac Arm Lab Res Qua Gar Res Tes Sec Acc Com Ac0 Damage Taken 45573 | . . 278 468 191 . 672 26 1091 1096 270 1802 . 1268 . 302 531 145 17 . 262 314 38 3197 2246 713 669 . 323 . . 3514 701 . 883 1452 1454 3213 3507 4613 274 863 9180 Core 5389 | . . 36 46 41 . 74 . 117 201 14 152 . 104 . 75 3 . . . 22 . 14 211 115 100 50 . 20 . . 240 63 . 63 37 71 322 514 430 12 89 2153 Absorbed by Shields 13976 | . . . . . . . . . . 84 . . . . 49 . . . . 269 129 40 613 58 . 202 . 278 . . 602 262 . 804 1358 824 1396 1152 1496 . 504 3856 Reduced by Siege Mode 214 | . . . . . . . . . . . . . . . . . . . . . . . 88 . 11 18 . . . . . 11 . . 86 . . . . . . . Redirected to Core 645 | . . . . . . . . . . . . . . . . . . . . . . . . . . . . . . . . . . . . . 218 427 . . . . Core Remaining (%) 61 | 100 . 85 . . . 59 . . . 39 . . . . . . . 52 . . . . 70 . . . . 71 . . . . 73 . . 86 . . 25 . . 15 Volleys Fired 2489 | . 2 37 61 14 . 34 8 53 42 8 75 35 78 15 25 84 42 20 . 34 26 21 166 99 23 20 24 19 12 34 130 71 3 50 94 51 117 129 453 14 228 38 Largest 2 | . 2 2 2 1 . 2 2 2 2 2 2 2 2 2 2 2 2 2 . 2 2 2 2 2 2 2 1 2 2 1 2 2 1 2 2 2 2 2 1 2 2 1 Hottest 240 | . 70 70 136 30 . 136 107 107 160 160 160 100 160 122 122 137 145 50 . 50 50 50 90 163 140 125 98 50 50 25 130 50 25 50 240 240 240 240 100 164 200 200 Shots Fired 3513 | . 4 74 118 14 . 58 9 83 80 12 139 38 140 16 38 118 53 39 . 58 48 42 216 154 46 41 24 43 14 35 221 122 3 94 166 85 187 147 446 14 236 38 Gun 252 | . 4 74 28 . . . . . . . . . . . . . . . . . . . 17 48 26 41 3 . . . . . . . . . . . 2 . . 9 Cannon 2830 | . . . 90 . . 38 8 71 75 8 131 6 140 4 27 81 53 39 . 58 48 42 172 88 20 . 2 43 7 4 217 117 3 94 156 70 180 143 420 11 141 23 Launcher 174 | . . . . 14 . 20 1 12 5 4 8 . . . 2 29 . . . . . . 25 8 . . . . . . . . . . 6 11 5 1 10 . 7 6 Special 257 | . . . . . . . . . . . . 32 . 12 9 8 . . . . . . 2 10 . . 19 . 7 31 4 5 . . 4 4 2 3 14 3 88 . Kinetic 285 | . 2 37 15 . . 2 1 57 27 . . . 63 2 14 1 1 . . . . . 17 1 . . . . . . . . . . . . 3 15 3 4 11 9 Thermal 1888 | . 2 37 103 . . 34 7 14 48 8 131 38 76 2 10 31 29 39 . 58 48 42 172 40 2 . 17 43 7 4 217 117 3 94 129 16 92 34 65 4 54 21 Explosive 139 | . . . . 14 . 20 1 2 5 4 8 . . . 2 29 . . . . . . 25 8 . . . . . . . . . . . . 5 1 10 . . 5 Electromagnetic 1030 | . . . . . . 2 . 10 . . . . 1 . 3 55 23 . . . . . . 95 44 41 3 . . . . . . . 33 65 85 94 354 3 116 3 Robot Hit Streak 35 | . 3 9 7 1 . 10 4 10 16 6 11 24 21 5 18 12 15 3 . 18 12 10 16 11 9 31 34 35 14 15 24 23 . 20 26 12 13 25 34 6 35 10 Robot Miss Streak 6 | . . 5 3 4 . 3 2 3 1 1 3 2 3 1 2 3 2 1 . 1 3 1 6 3 2 1 . 3 . 1 3 2 . 2 3 2 3 2 4 1 2 5 Penetration Max 1 | . . . . . . . . . . . . . . . . . . . . . . . . . . . . . . . . . . . . . 1 1 1 . 1 . Secondary Targets 5 | . . 1 1 . . . . . . . . . . . . . . . . . . . . . . 3 . . . . . . . . . . . . . . . . Max Gunslinging Chain 1 | . . 1 1 . . . . . . . . . . . . . . . . . . . . . . 1 . . . . . . . . . . . . . . . . Capacitor 473 | . . . . . . . . . . . . . . . . . . . . . . . . . . . . . . . . . . . . . . 11 375 6 78 3 Shots Hit Robots 2453 | . 3 43 67 2 8 41 4 45 95 13 115 36 98 12 28 73 20 7 . 31 31 32 156 96 33 36 24 20 11 16 157 85 . 69 108 55 114 117 339 4 189 20 Core Hits 1316 | . 1 19 32 24 . 40 2 40 35 15 49 6 38 3 14 50 10 3 . 18 10 11 163 73 18 16 6 11 2 . 60 26 . 23 42 46 60 64 173 3 69 41 Critical Hits 194 | . . . 5 . . 1 1 2 2 . . 7 1 . . 1 . . . . . . . 1 . . 3 . . . . . . . 1 2 5 33 82 1 40 6 Critical Kills 50 | . . . 2 . . 1 . . 2 . . . . . . . . . . . . . . . . . . . . . . . . . . . 1 11 26 1 6 . Critical Parts Destroyed 98 | . . . 2 . . . . 2 . . . 2 1 . . . . . . . . . . 1 . . 1 . . . . . . . 1 1 4 18 43 . 19 3 Melee Attacks 121 | . . . . . 8 . . . 39 7 38 . 7 . 1 . . . . . . . . . . . . . . . . . . . . . . 12 9 . . . Kinetic 21 | . . . . . . . . . . . . . . . . . . . . . . . . . . . . . . . . . . . . . . 12 9 . . . Impact . | . . . . . . . . . . . . . . . . . . . . . . . . . . . . . . . . . . . . . . . . . . . Slashing 56 | . . . . . . . . . 24 4 20 . 7 . 1 . . . . . . . . . . . . . . . . . . . . . . . . . . . Piercing . | . . . . . . . . . . . . . . . . . . . . . . . . . . . . . . . . . . . . . . . . . . . Sneak Attacks 51 | . . . . . 7 . . . 24 3 17 . . . . . . . . . . . . . . . . . . . . . . . . . . . . . . . Combat Hostiles 41 | . . . . . . . . . 24 2 15 . . . . . . . . . . . . . . . . . . . . . . . . . . . . . . . Follow-up Attacks . | . . . . . . . . . . . . . . . . . . . . . . . . . . . . . . . . . . . . . . . . . . . Damage Inflicted 143461 | . 39 551 1350 1327 . 2211 101 1536 3824 774 4048 510 2888 86 1098 3405 645 385 . 2370 1445 1523 10681 5449 1213 1034 303 1012 236 . 7961 3664 . 3418 5359 3218 7737 7922 24907 264 6476 22491 Guns 3244 | . 39 517 260 . . . . . . . . . . . . . . . . . . . 326 562 569 828 62 . . . . . . . . . . . 4 . . 77 Cannons 78012 | . . . 1051 . . 553 101 832 1216 106 1978 156 2663 86 563 1377 521 385 . 2034 1445 1514 4776 1848 420 . 65 1012 175 . 7844 3664 . 3336 4738 1835 5768 6744 13208 231 4694 1073 Explosions 54986 | . . . . 1278 . 1528 . 704 361 389 572 . . . 523 1980 124 . . 281 . . 5435 2931 224 206 . . . . . . . . 405 1383 1833 717 11237 . 1534 21341 Melee 4685 | . . . . . . . . . 2200 279 1470 . . . . . . . . . . . . . . . . . . . . . . . . . . 427 309 . . . Ramming 1708 | . . 34 39 49 . 130 . . 47 . 28 . 225 . 12 . . . . 55 . 9 144 108 . . . . 61 . 117 . . 82 216 . 136 34 149 33 . . Kinetic 5241 | . 14 231 122 . . 19 . 772 285 . . . 1096 60 292 . . . . . . . 326 12 . . . . . . . . . . . . 90 998 313 55 479 77 Thermal 71879 | . 25 286 1189 57 . 489 101 184 931 106 1978 510 1567 26 380 453 233 385 . 2315 1445 1514 4776 1231 224 206 241 1012 175 . 7844 3664 . 3336 4074 608 2938 1641 3401 . 3383 18951 Explosive 30142 | . . . . 1221 . 1528 . 226 361 389 572 . . . 357 1936 . . . . . . 4597 2275 . . . . . . . . . . . . 1744 717 10828 . . 3391 Electromagnetic 30542 | . . . . . . 45 . 354 . . . . . . 57 1016 412 . . . . . 838 1823 989 828 62 . . . . . . . 1069 2610 2829 4532 10216 176 2614 72 Impact . | . . . . . . . . . . . . . . . . . . . . . . . . . . . . . . . . . . . . . . . . . . . Slashing 3949 | . . . . . . . . . 2200 279 1470 . . . . . . . . . . . . . . . . . . . . . . . . . . . . . . . Piercing . | . . . . . . . . . . . . . . . . . . . . . . . . . . . . . . . . . . . . . . . . . . . Highest Corruption 23 | . . . 2 2 2 2 . . . . 2 . . . 2 2 . . . . . . 23 7 7 7 7 8 . 6 7 1 1 . 1 6 5 16 16 . . . Average Corruption 5 | . . . 2 2 2 2 . . . . 1 . . . 1 2 . . . . . . 7 5 7 7 7 7 . 6 4 1 1 . 1 5 3 8 16 . . . Corruption Purged 9 | . . . . . . . . . . . 2 . . . . . . . . . . . . . . . . . . . 7 . . . . . . . . . . . Effects 725 | . . . 4 10 8 12 . . . . 1 . . . 11 1 . . . . . . 20 46 67 57 29 47 . 26 63 9 . . 4 27 19 73 191 . . . Message Errors 138 | . . . 1 1 3 2 . . . . . . . . 3 1 . . . . . . 1 11 19 14 10 10 . 3 11 2 . . 1 7 4 11 23 . . . Matter Fused 118 | . . . . . . . . . . . . . . . . . . . . . . . 4 10 16 12 4 11 . 4 11 . . . . 7 3 14 22 . . . Heat Flow Errors 79 | . . . 2 3 2 4 . . . . . . . . 1 . . . . . . . . 7 6 11 3 5 . 5 6 . . . . 4 2 7 11 . . . Energy Discharges 83 | . . . 1 5 3 3 . . . . . . . . 4 . . . . . . . 1 5 8 7 2 8 . 3 4 1 . . . 3 7 5 13 . . . Parts Rejected 4 | . . . . . . . . . . . . . . . . . . . . . . . . 1 . 1 . . . . 1 . . . . . . . 1 . . . Data Loss (minor) 73 | . . . . 1 . 2 . . . . 1 . . . 3 . . . . . . . 1 7 10 3 5 6 . 4 5 3 . . 1 2 . 7 12 . . . Data Loss (major) 22 | . . . . . . . . . . . . . . . . . . . . . . . . . 3 4 1 1 . 1 2 . . . . . . 2 8 . . . Misfires 25 | . . . . . . . . . . . . . . . . . . . . . . . 2 . 2 2 . 5 . 1 2 . . . . . 1 4 6 . . . Alerts 3 | . . . . . . . . . . . . . . . . . . . . . . . . . . . . . . . . . . . . . . 1 2 . . . Misdirections 21 | . . . . . . . . . . . . . . . . . . . . . . . . . . . . . . . . . . . . . . 7 14 . . . Targeting Errors 139 | . . . . . . 1 . . . . . . . . . . . . . . . . 10 4 3 2 4 1 . 5 17 3 . . 2 4 2 15 66 . . . Weapon Failures 20 | . . . . . . . . . . . . . . . . . . . . . . . 1 1 . 1 . . . . 4 . . . . . . . 13 . . . Overload Shots . | . . . . . . . . . . . . . . . . . . . . . . . . . . . . . . . . . . . . . . . . . . . Overflow Damage 8597 | . . . 10 21 . 46 . 8 439 . 420 . 105 . 22 94 24 6 . 89 108 121 288 370 29 . 9 95 . . 530 331 . 245 250 73 477 435 1819 18 61 2054 Projectiles 3188 | . . . 10 . . . . . 42 . 39 . 68 . 12 21 24 6 . 60 108 121 253 77 . . 9 95 . . 503 331 . 212 230 . 321 317 253 15 61 . Explosions 4469 | . . . . 21 . 41 . 8 3 . 25 . . . . 73 . . . 24 . . 35 290 29 . . . . . . . . . . 73 156 71 1566 . . 2054 Melee 940 | . . . . . . 5 . . 394 . 356 . 37 . 10 . . . . 5 . . . 3 . . . . . . 27 . . 33 20 . . 47 . 3 . . Knockbacks 47 | . . . . . . . . 8 . . . . 13 . 4 . . . . 1 . . 1 2 . . . . 1 . . . . 2 2 . 5 5 1 . 2 . Impact 16 | . . . . . . . . . . . . . 2 . . . . . . 1 . . 1 2 . . . . 1 . . . . 2 2 . 3 1 1 . . . Kinetic 29 | . . . . . . . . 8 . . . . 9 . 4 . . . . . . . . . . . . . . . . . . . . . 2 4 . . 2 . Secondary 2 | . . . . . . . . . . . . . 2 . . . . . . . . . . . . . . . . . . . . . . . . . . . . . Self-Inflicted Damage 1740 | . . . . 59 . 117 . 43 11 . . . . . . 83 . . . . . . 25 86 66 24 . . . . . . . . . 333 . . 53 . 93 747 Shots 38 | . . . . 2 . 4 . 4 1 . . . . . . 3 . . . . . . 3 3 1 1 . . . . . . . . . 12 . . 1 . 1 2 Rammed 100 | . . 12 5 6 . 7 . . 2 . 2 . 13 . 1 . . . . 4 . 1 8 6 . . . . 4 . 4 . . 2 13 . 6 3 1 . . . Targets Rammed 116 | . . 13 5 6 . 8 . . 2 . 2 . 14 . 1 . . . . 4 . 1 9 8 . . . . 4 . 4 . . 2 14 . 6 3 9 1 . . Kicked 9 | . . . . . . . . . . . . . . . . . . . . . . . . . . . . . . . . . . . . . . . 8 1 . . Crushed 7 | . . 1 . . . 1 . . . . . . 1 . . . . . . . . . 1 2 . . . . . . . . . . 1 . . . . . . . Highest Temperature 416 | . 18 63 367 231 182 241 . 15 237 54 243 . 361 10 216 318 118 . . . . . 172 320 410 281 241 267 . 224 253 28 . 2 306 237 416 358 330 24 241 93 Average Temperature 86 | . 10 16 74 112 93 60 . 5 54 27 47 . 112 5 47 100 47 . . . . . 70 108 106 87 63 104 . 83 78 15 . 2 122 73 116 104 94 13 62 34 Received Heat Transfer 5629 | . . . 165 . . 144 . 486 333 70 546 . 453 . 40 76 18 . . 48 . 4 543 327 216 120 . 15 . . 319 20 . 51 142 121 183 337 392 . 103 357 Effects 16 | . . . . . . . . . . . . . 3 . . 1 . . . . . . . 1 . . . 1 . . . . . . . . 7 1 2 . . . Shutdowns 2 | . . . . . . . . . . . . . . . . 1 . . . . . . . . . . . . . . . . . . . . 1 . . . . . Energy Bleed 4 | . . . . . . . . . . . . . . . . . . . . . . . . 1 . . . 1 . . . . . . . . 1 . 1 . . . Interference 9 | . . . . . . . . . . . . . 3 . . . . . . . . . . . . . . . . . . . . . . . 5 . 1 . . . Damage (minor) 1 | . . . . . . . . . . . . . . . . . . . . . . . . . . . . . . . . . . . . . . 1 . . . . Siege Activations 27 | . . . . . . . . . . . . . . . . . . . . . . 1 4 1 2 5 . . . . 2 4 . . 3 4 1 . . . . . Total Turns 573 | . . . . . . . . . . . . . . . . . . . . . . 48 172 11 36 55 . . . . 7 107 . . 110 25 2 . . . . . Longest Duration 140 | . . . . . . . . . . . . . . . . . . . . . . 48 140 11 24 25 . . . . 5 46 . . 47 11 2 . . . . . Robots Corrupted 127 | . . . . . . . . . . . . . . . . 5 1 . . . . . 1 2 4 2 . . . . . . . . 7 9 12 19 51 . 13 1 Combat Hostiles 115 | . . . . . . . . . . . . . . . . 5 1 . . . . . 1 2 4 2 . . . . . . . . 6 8 10 15 50 . 10 1 Parts Fried 279 | . . . 2 . . . . 1 . . . . 2 . . 12 1 . . 3 . . 6 14 13 7 . . . . . . . . 19 21 27 43 76 4 24 4 Impact Corruptions 17 | . . . 1 . . 2 . . 1 . . . 3 . 2 . . . . 2 . . . 1 . . . . . . 2 . . 1 1 . . . . 1 . . Robots Melted 1 | . . . . . . . . . . . 1 . . . . . . . . . . . . . . . . . . . . . . . . . . . . . . . Combat Hostiles 1 | . . . . . . . . . . . 1 . . . . . . . . . . . . . . . . . . . . . . . . . . . . . . . Parts Melted 67 | . 2 1 4 . . . . . 4 1 12 . 7 . . . . . . 2 1 2 2 2 . . 1 . . . 6 1 . 2 . . 3 2 11 . 1 . Heat Transferred 43841 | . 74 851 2294 50 . 888 185 361 1745 200 3800 1484 2742 37 509 747 198 200 . 1300 760 850 3193 1209 200 150 655 525 100 . 4206 1925 . 1778 3029 385 1974 851 2124 . 1384 878 Parts Sabotaged 4 | . . . . . . . . . . . . . . . . . . . . . . . 1 . . . . . . . . . . . . . 2 . 1 . . . Parts Stolen . | . . . . . . . . . . . . . . . . . . . . . . . . . . . . . . . . . . . . . . . . . . . Parts Stripped . | . . . . . . . . . . . . . . . . . . . . . . . . . . . . . . . . . . . . . . . . . . . Power Chain Reactions 22 | . . . . . . . . 3 . . . . . . 1 1 2 . . . . . 1 1 1 2 . . . . . . . . 1 3 1 . 3 . 2 . Missiles Intercepted . | . . . . . . . . . . . . . . . . . . . . . . . . . . . . . . . . . . . . . . . . . . . Alert | -11 -10 -10 -9 -9 -9 -8 -8 -8 -8 -8 -7 -7 -7 -7 -7 -7 -7 -6 -6 -6 -6 -6 -6 -5 -5 -5 -5 -4 -4 -4 -4 -4 -4 -3 -3 -3 -2 -2 -2 -1 -1 -1 ------- Run | Scr Mat Min Mat Min Exi Min Mat Gar Mat Gar Fac Was Fac Low Low Zio Dee Pro Fac Ext Cet Arc Hub Fac Upp Upp Zhi Pro Fac Was Fac Arm Lab Res Qua Gar Res Tes Sec Acc Com Ac0 Peak Influence 2664 | . 52 89 380 305 . 408 195 887 822 848 849 297 246 . . . . . 6 452 284 313 2095 1662 . . . . 60 15 608 432 . 469 412 953 1394 1629 2664 1736 1350 . Average Influence 501 | . 14 27 199 151 . 269 121 553 643 668 660 201 85 . . . . . . 106 143 267 704 1278 . . . . 27 6 288 288 . 222 178 613 904 1319 1202 1645 1113 . Maximum Alert Level 5 | . . . 1 1 . 2 . 3 3 3 3 1 1 . . . . . . 2 1 1 5 5 . . . . . . 2 2 . 2 2 3 4 5 5 5 4 . Low Security (%) 39 | 100 100 100 53 69 . 12 100 15 . . . 47 87 . . . . . 100 88 65 14 21 . . . . . 100 100 30 16 . 49 62 19 . . . . 79 . Level 1 17 | . . . 46 30 . 76 . 11 . . . 52 12 . . . . . . 4 34 85 25 . . . . . . . 31 75 . 35 35 . . . . . . . Level 2 15 | . . . . . . 10 . 41 56 57 58 . . . . . . . . 6 . . 13 . . . . . . . 37 8 . 14 2 44 49 . 7 . . . Level 3 13 | . . . . . . . . 31 43 42 41 . . . . . . . . . . . 18 33 . . . . . . . . . . . 34 10 12 40 . 5 . Level 4 10 | . . . . . . . . . . . . . . . . . . . . . . . 4 52 . . . . . . . . . . . . 40 78 36 35 14 . Level 5 1 | . . . . . . . . . . . . . . . . . . . . . . . 6 14 . . . . . . . . . . . . . 9 . 64 . . High Security 1 | . . . . . . . . . . . . . . . . . . . . . . . 10 . . . . . . . . . . . . . . . 14 . . . Max Security . | . . . . . . . . . . . . . . . . . . . . . . . . . . . . . . . . . . . . . . . . . . . Squads Dispatched 116 | . 1 . 6 . . . 1 . 6 . 9 . 3 . . . . . . 1 . . 12 4 . . . . 1 . 8 3 . 7 4 . 5 12 31 1 1 . Investigation 16 | . 1 . 2 . . . . . 2 . 1 . . . . . . . . . . . 2 1 . . . . 1 . . . . 4 1 . . . 1 . . . Extermination 30 | . . . . . . . . . . . 3 . 2 . . . . . . . . . 2 1 . . . . . . 5 3 . . 2 . 3 4 5 . . . Reinforcement 31 | . . . 4 . . . 1 . 2 . 3 . 1 . . . . . . 1 . . 2 1 . . . . . . 3 . . 3 1 . 1 4 4 . . . Assault 31 | . . . . . . . . . 1 . 2 . . . . . . . . . . . 6 1 . . . . . . . . . . . . 1 4 15 . 1 . Garrison 5 | . . . . . . . . . 1 . . . . . . . . . . . . . . . . . . . . . . . . . . . . . 3 1 . . Intercept 3 | . . . . . . . . . . . . . . . . . . . . . . . . . . . . . . . . . . . . . . . 3 . . . Construction Impeded 6 | . . . . . . . . . . . 1 . . . . . . . . 1 . . 2 1 . . . . . . . . . . . . 1 . . . . . Haulers Reinforced 2 | . . . . . . . . . . . . . 1 . . . . . . . . . . . . . . . . . 1 . . . . . . . . . . . Stealth | -11 -10 -10 -9 -9 -9 -8 -8 -8 -8 -8 -7 -7 -7 -7 -7 -7 -7 -6 -6 -6 -6 -6 -6 -5 -5 -5 -5 -4 -4 -4 -4 -4 -4 -3 -3 -3 -2 -2 -2 -1 -1 -1 --------- Run | Scr Mat Min Mat Min Exi Min Mat Gar Mat Gar Fac Was Fac Low Low Zio Dee Pro Fac Ext Cet Arc Hub Fac Upp Upp Zhi Pro Fac Was Fac Arm Lab Res Qua Gar Res Tes Sec Acc Com Ac0 Distress Signals 30 | . . 1 3 . . . . . 2 . 2 . . . . . . . . 1 . . 3 . . . . . . . 1 1 . 4 1 . 3 1 6 1 . . Communications Jammed 59 | . . . . . . . . . . . . . . . . . . . . . . . . . . . . . . . . . . . . . 23 36 . . . . Distress Signals 59 | . . . . . . . . . . . . . . . . . . . . . . . . . . . . . . . . . . . . . 23 36 . . . . Times Spotted 1072 | . 1 13 33 19 . 22 6 24 40 12 51 . 33 4 21 44 4 1 . 17 13 23 85 56 11 13 . 11 1 6 46 23 . 33 40 38 61 63 161 6 15 22 Peak Tracking Total 16 | . 1 3 3 4 . 7 3 5 7 6 5 . 4 3 4 4 2 1 . 4 5 1 16 7 4 5 . 5 2 3 8 5 . 8 5 14 8 6 13 5 5 9 Tactical Retreats 54 | . . . 2 . . . . . 5 1 3 . 6 . 1 1 . . . 1 . . 2 3 1 . . . . . 3 . . . 6 2 3 2 8 . . 4 Traps | -11 -10 -10 -9 -9 -9 -8 -8 -8 -8 -8 -7 -7 -7 -7 -7 -7 -7 -6 -6 -6 -6 -6 -6 -5 -5 -5 -5 -4 -4 -4 -4 -4 -4 -3 -3 -3 -2 -2 -2 -1 -1 -1 ------- Run | Scr Mat Min Mat Min Exi Min Mat Gar Mat Gar Fac Was Fac Low Low Zio Dee Pro Fac Ext Cet Arc Hub Fac Upp Upp Zhi Pro Fac Was Fac Arm Lab Res Qua Gar Res Tes Sec Acc Com Ac0 Traps Triggered 49 | . . . . . . . . 9 1 2 1 . . . . . . . . 2 . . 1 1 . . . . 1 . . . . . 3 6 . . . . 22 . Indirectly 16 | . . . . . . . . . . . . . . . . . . . . . . . . . . . . . . . . . . . . . . . . . 16 . Trap Hack Attempts . | . . . . . . . . . . . . . . . . . . . . . . . . . . . . . . . . . . . . . . . . . . . Triggered . | . . . . . . . . . . . . . . . . . . . . . . . . . . . . . . . . . . . . . . . . . . . Disarmed 10 | . . . . . . . . . . . . . 6 . . . . . . . . . 4 . . . . . . . . . . . . . . . . . . . Reprogrammed 7 | . . . . . . . . . . . . . . . . . . . . . . . . . . . . . . . . 7 . . . . . . . . . . Reused 12 | . . . . . . . . . . . . . . . . . . . . . . . . . . . . . . . . 12 . . . . . . . . . . Traps Extracted . | . . . . . . . . . . . . . . . . . . . . . . . . . . . . . . . . . . . . . . . . . . . Installed 3 | . . . . . . . . . . . . . . . . . 3 . . . . . . . . . . . . . . . . . . . . . . . . . Triggered 14 | . . . . . . . . . . . . . . 1 1 . . . . . . . . . . . . . . . . 12 . . . . . . . . . . Fabricated Traps 3 | . . . . . . . . . . . . . . . . 3 . . . . . . . . . . . . . . . . . . . . . . . . . . Machines | -11 -10 -10 -9 -9 -9 -8 -8 -8 -8 -8 -7 -7 -7 -7 -7 -7 -7 -6 -6 -6 -6 -6 -6 -5 -5 -5 -5 -4 -4 -4 -4 -4 -4 -3 -3 -3 -2 -2 -2 -1 -1 -1 ---------- Run | Scr Mat Min Mat Min Exi Min Mat Gar Mat Gar Fac Was Fac Low Low Zio Dee Pro Fac Ext Cet Arc Hub Fac Upp Upp Zhi Pro Fac Was Fac Arm Lab Res Qua Gar Res Tes Sec Acc Com Ac0 Machines Disabled 136 | . . . 2 3 . 1 . 8 2 2 1 . 4 1 1 1 3 . . 6 2 2 23 16 . . . . . . 2 4 1 1 5 3 6 11 16 2 1 6 Max in Single Turn 10 | . . . 2 2 . 1 . 2 1 1 1 . 1 1 1 1 1 . . 2 1 . 10 5 . . . . . . 1 1 1 1 1 1 2 5 3 1 1 4 Garrison Access 3 | . . . . . . . . . . . . . 1 . . . . . . . . . 1 . . . . . . . . . . 1 . . . . . . . . Garrison Relay 9 | . . . . . . . . 4 . 2 . . . . . . . . . . . . . . . . . . . . . . . . . 3 . . . . . . Phase Generator 1 | . . . . . . . . 1 . . . . . . . . . . . . . . . . . . . . . . . . . . . . . . . . . . Network Hub 4 | . . . . . . . . . . . . . . . . . . . . . . . 4 . . . . . . . . . . . . . . . . . . . Energy Cycler 1 | . . . . . . . . . . . . . . . . . . . . 1 . . . . . . . . . . . . . . . . . . . . . . Machines Sabotaged . | . . . . . . . . . . . . . . . . . . . . . . . . . . . . . . . . . . . . . . . . . . . Garrisons Compromised . | . . . . . . . . . . . . . . . . . . . . . . . . . . . . . . . . . . . . . . . . . . . Overloaded Fab Kills . | . . . . . . . . . . . . . . . . . . . . . . . . . . . . . . . . . . . . . . . . . . . Fab Network Shutdowns . | . . . . . . . . . . . . . . . . . . . . . . . . . . . . . . . . . . . . . . . . . . . Hacking | -11 -10 -10 -9 -9 -9 -8 -8 -8 -8 -8 -7 -7 -7 -7 -7 -7 -7 -6 -6 -6 -6 -6 -6 -5 -5 -5 -5 -4 -4 -4 -4 -4 -4 -3 -3 -3 -2 -2 -2 -1 -1 -1 --------- Run | Scr Mat Min Mat Min Exi Min Mat Gar Mat Gar Fac Was Fac Low Low Zio Dee Pro Fac Ext Cet Arc Hub Fac Upp Upp Zhi Pro Fac Was Fac Arm Lab Res Qua Gar Res Tes Sec Acc Com Ac0 Machines Accessed 126 | . 1 . 6 . 4 . 2 . 8 . 7 . 8 1 . 1 . . 2 10 2 . 6 3 1 1 9 . 3 . 6 6 2 7 11 . 4 3 11 . 1 . Terminals 72 | . . . 4 . . . 1 . 5 . 3 . 5 . . . . . 1 8 2 . 6 2 . . . . 2 . 3 4 . 3 8 . 3 1 10 . 1 . Fabricators 3 | . . . . . . . . . . . 1 . . . . . . . 1 . . . . . . . . . . . 1 . . . . . . . . . . . Repair Stations 6 | . . . . . . . . . . . 1 . 1 . . . . . . . . . . . . . . . . . 1 . . . 2 . . 1 . . . . Recycling Units 12 | . 1 . 2 . . . . . 2 . 1 . 1 . . . . . . 2 . . . . . . . . . . 1 2 . . . . . . . . . . Scanalyzers 4 | . . . . . . . . . . . 1 . . . . . . . . . . . . . . . . . . . . . . 2 . . 1 . . . . . Garrison Access 10 | . . . . . . . 1 . 1 . . . 1 . . . . . . . . . . 1 . . . . 1 . . . . 2 1 . . 1 1 . . . Total Hacks 618 | . 1 . 10 . 48 . 8 . 20 . 20 . 18 1 . 5 . . 6 26 5 . 17 29 1 1 48 . 19 . 42 44 19 38 67 . 32 21 63 . 9 . Successful 378 | . 1 . 7 . 48 . 6 . 10 . 12 . 10 1 . 5 . . 3 14 2 . 11 13 1 1 48 . 8 . 17 28 19 19 44 . 15 11 19 . 5 . Failed 240 | . . . 3 . . . 2 . 10 . 8 . 8 . . . . . 3 12 3 . 6 16 . . . . 11 . 25 16 . 19 23 . 17 10 44 . 4 . Catastrophic 57 | . . . 2 . . . . . 3 . . . 2 . . . . . 1 . . . . 4 . . . . 3 . 2 2 . 4 5 . 3 5 20 . 1 . Database Lockouts . | . . . . . . . . . . . . . . . . . . . . . . . . . . . . . . . . . . . . . . . . . . . Manual 296 | . 1 . 7 . . . 3 . 14 . 11 . 9 . 1 5 . . 3 14 6 . 13 23 . . . . 11 . 20 29 . 18 30 . 14 18 41 . 5 . Terminals 390 | . . . 8 . . . 7 . 17 . 10 . 13 . . . . . 4 21 5 . 17 27 . . . . 13 . 29 40 . 16 52 . 28 15 59 . 9 . Fabricators 9 | . . . . . . . . . . . 2 . . . . . . . 2 . . . . . . . . . . . 5 . . . . . . . . . . . Repair Stations 18 | . . . . . . . . . . . 1 . 1 . . . . . . . . . . . . . . . . . 6 . . . 8 . . 2 . . . . Recycling Units 20 | . 1 . 2 . . . . . 2 . 2 . 2 . . . . . . 5 . . . . . . . . . . 2 4 . . . . . . . . . . Scanalyzers 17 | . . . . . . . . . . . 5 . . . . . . . . . . . . . . . . . . . . . . 8 . . 4 . . . . . Garrison Access 41 | . . . . . . . 1 . 1 . . . 2 . . . . . . . . . . 2 . . . . 6 . . . . 14 7 . . 4 4 . . . Terminal Hacks 244 | . . . 4 . 48 . 3 . 4 . 4 . 4 1 . 5 . . 2 7 1 . 4 7 1 1 48 . 5 . 8 17 19 3 20 . 10 3 12 . 3 . Record 104 | . . . . . 48 . . . . . . . . . . . . . . . . . . . . . 36 . . . . . 19 . 1 . . . . . . . Part Schematic 10 | . . . . . . . . . . . . . . . . 5 . . . . . . . . . . 4 . . . . . . . 1 . . . . . . . Robot Analysis 7 | . . . . . . . . . . . . . 1 . . . . . . . . . . . . . 4 . . . . . . . 2 . . . . . . . Prototype ID Bank 19 | . . . . . . . . . . . . . . . . . . . 1 4 . . 1 . . . 4 . 1 . 2 2 . . 3 . 1 . . . . . Open Door 9 | . . . . . . . . . . . . . . 1 . . . . 1 . . . . . 1 1 . . . . . 1 . . 2 . . . 1 . 1 . Level Access Points 2 | . . . . . . . . . . . . . . . . . . . . . . . . . . . . . . . . . . 1 . . 1 . . . . . Branch Access Points 5 | . . . . . . . . . . . . . 1 . . . . . . . . . . 1 . . . . 1 . 1 . . . . . 1 . . . . . Emergency Access Points 1 | . . . . . . . . . 1 . . . . . . . . . . . . . . . . . . . . . . . . . . . . . . . . . Terminal Index 4 | . . . . . . . . . 1 . . . . . . . . . . . . . . . . . . . . . . 1 . . 1 . 1 . . . . . Scanalyzer Index 1 | . . . . . . . . . . . 1 . . . . . . . . . . . . . . . . . . . . . . . . . . . . . . . Garrison Index 3 | . . . . . . . . . . . . . . . . . . . . . . . . . . . . . . . 1 . . 1 . . 1 . . . . . Unreport Threat 23 | . . . 1 . . . . . . . . . . . . . . . . 2 1 . . 5 . . . . . . . 3 . 1 2 . . 2 4 . 2 . Locate Traps 16 | . . . 2 . . . 1 . . . 2 . 1 . . . . . . . . . 1 . . . . . . . 1 3 . . . . 1 . 4 . . . Disarm Traps 2 | . . . . . . . . . . . . . 1 . . . . . . . . . 1 . . . . . . . . . . . . . . . . . . . Reprogram Traps 2 | . . . . . . . . . . . . . . . . . . . . . . . . . . . . . . . . 2 . . . . . . . . . . Patrol Status 1 | . . . . . . . . . . . . . . . . . . . . . . . . . . . . . . . . 1 . . . . . . . . . . Coupling Status 1 | . . . . . . . . . . . . . . . . . . . . . . . . . . . . . 1 . . . . . . . . . . . . . Recall Investigation 2 | . . . . . . . . . . . . . . . . . . . . . . . . . . . . . 1 . . . . . 1 . . . . . . . Recall Extermination 2 | . . . . . . . . . . . . . . . . . . . . . . . . . . . . . . . . . . . 1 . 1 . . . . . Recall Reinforcements 5 | . . . 1 . . . . . 1 . . . . . . . . . . 1 . . . . . . . . . . 1 . . . 1 . . . . . . . Recall Assault 2 | . . . . . . . . . . . 1 . . . . . . . . . . . . . . . . . . . . . . . . . . . 1 . . . Hauler Manifests 8 | . . . . . . . 1 . 1 . . . . . . . . . . . . . . 1 . . . . 1 . 1 . . . 1 . 1 . 1 . . . Registered Components 1 | . . . . . . . . . . . . . . . . . . . . . . . . . . . . . . . . 1 . . . . . . . . . . Registered Prototypes 2 | . . . . . . . . . . . . . . . . . . . . . . . . . . . . . . . 1 1 . . . . . . . . . . Zone Layout 12 | . . . . . . . 1 . . . . . . . . . . . . . . . 1 . . . . . . . . 2 . . 4 . 2 1 1 . . . Fabricator Hacks 1 | . . . . . . . . . . . . . . . . . . . 1 . . . . . . . . . . . . . . . . . . . . . . . Load Schematic 1 | . . . . . . . . . . . . . . . . . . . 1 . . . . . . . . . . . . . . . . . . . . . . . Repair Station Hacks 8 | . . . . . . . . . . . . . . . . . . . . . . . . . . . . . . . 3 . . . 5 . . . . . . . Scan Component 5 | . . . . . . . . . . . . . . . . . . . . . . . . . . . . . . . 2 . . . 3 . . . . . . . Repair 3 | . . . . . . . . . . . . . . . . . . . . . . . . . . . . . . . 1 . . . 2 . . . . . . . Recycling Unit Hacks 7 | . . . . . . . . . . . . . 1 . . . . . . 3 . . . . . . . . . . 1 2 . . . . . . . . . . Retrieve Components 7 | . . . . . . . . . . . . . 1 . . . . . . 3 . . . . . . . . . . 1 2 . . . . . . . . . . Scanalyzer 8 | . . . . . . . . . . . 4 . . . . . . . . . . . . . . . . . . . . . . 4 . . . . . . . . Insert Component 5 | . . . . . . . . . . . 1 . . . . . . . . . . . . . . . . . . . . . . 4 . . . . . . . . Analyze 3 | . . . . . . . . . . . 3 . . . . . . . . . . . . . . . . . . . . . . . . . . . . . . . Garrison Access Hacks 14 | . . . . . . . 1 . 1 . . . 2 . . . . . . . . . . 2 . . . . . . . . . 2 3 . . 1 2 . . . Unlock Access 5 | . . . . . . . 1 . 1 . . . . . . . . . . . . . . 1 . . . . . . . . . . 1 . . . 1 . . . Seal Access 1 | . . . . . . . . . . . . . 1 . . . . . . . . . . . . . . . . . . . . . . . . . . . . . Coupler Status 8 | . . . . . . . . . . . . . 1 . . . . . . . . . . 1 . . . . . . . . . 2 2 . . 1 1 . . . Unauthorized Hacks 249 | . 2 . 6 . . . 4 . 10 . 12 . 6 . . . . . . 9 4 . 20 14 . . . . 11 . 24 20 . 28 34 . 11 14 16 . 4 . Terminals 74 | . . . 1 . . . 2 . 3 . 2 . 3 . . . . . . 4 1 . 7 4 . . . . 2 . 5 9 . 3 12 . 5 4 5 . 2 . Track 19 | . . . . . . . 1 . 1 . . . . . . . . . . . . . 2 1 . . . . . . 2 2 . . 5 . 2 1 1 . 1 . Assimilate 4 | . . . . . . . . . . . . . . . . . . . . . . . . . . . . . . . . 2 . . 1 . . 1 . . . . Botnet 44 | . . . 1 . . . 1 . 2 . 2 . 3 . . . . . . 4 1 . 3 2 . . . . 2 . 3 3 . 3 5 . 3 1 4 . 1 . Disrupt 2 | . . . . . . . . . . . . . . . . . . . . . . . . . . . . . . . . 1 . . . . . 1 . . . . Operators 3 | . . . . . . . . . . . . . . . . . . . . . . . . 1 . . . . . . . 1 . . 1 . . . . . . . Sabotage 2 | . . . . . . . . . . . . . . . . . . . . . . . 2 . . . . . . . . . . . . . . . . . . . Fabricators 1 | . . . . . . . . . . . 1 . . . . . . . . . . . . . . . . . . . . . . . . . . . . . . . Haulers 1 | . . . . . . . . . . . 1 . . . . . . . . . . . . . . . . . . . . . . . . . . . . . . . Repair Stations . | . . . . . . . . . . . . . . . . . . . . . . . . . . . . . . . . . . . . . . . . . . . Recycling Units 6 | . 1 . 2 . . . . . 2 . 1 . . . . . . . . . . . . . . . . . . . . . . . . . . . . . . . Tunnel 6 | . 1 . 2 . . . . . 2 . 1 . . . . . . . . . . . . . . . . . . . . . . . . . . . . . . . Scanalyzers . | . . . . . . . . . . . . . . . . . . . . . . . . . . . . . . . . . . . . . . . . . . . Garrison Access 15 | . . . . . . . . . . . . . . . . . . . . . . . . . . . . . 1 . . . . 7 4 . . 3 . . . . Broadcast 3 | . . . . . . . . . . . . . . . . . . . . . . . . . . . . . . . . . . 1 1 . . 1 . . . . Reprogram 4 | . . . . . . . . . . . . . . . . . . . . . . . . . . . . . . . . . . 2 1 . . 1 . . . . Intercept 2 | . . . . . . . . . . . . . . . . . . . . . . . . . . . . . . . . . . 1 1 . . . . . . . Watchers 3 | . . . . . . . . . . . . . . . . . . . . . . . . . . . . . . . . . . 1 1 . . 1 . . . . Eject 3 | . . . . . . . . . . . . . . . . . . . . . . . . . . . . . 1 . . . . 2 . . . . . . . . Data Cores Recovered 1 | . . . . . . . . . . . . . . . . . . . . . . . . 1 . . . . . . . . . . . . . . . . . . Used . | . . . . . . . . . . . . . . . . . . . . . . . . . . . . . . . . . . . . . . . . . . . Hacking Detections 84 | . . . 4 . . . 1 . 6 . 5 . 7 . . . . . 2 7 1 . 3 3 . . . . 2 . 5 4 . 7 10 . 3 3 11 . . . Full Trace Events 1 | . . . . . . . . . . . . . . . . . . . . . . . . . . . . . . . . . . . 1 . . . . . . . Feedback Events . | . . . . . . . . . . . . . . . . . . . . . . . . . . . . . . . . . . . . . . . . . . . Feedback Blocked . | . . . . . . . . . . . . . . . . . . . . . . . . . . . . . . . . . . . . . . . . . . . Robot Schematics Acquired . | . . . . . . . . . . . . . . . . . . . . . . . . . . . . . . . . . . . . . . . . . . . Robots Built . | . . . . . . . . . . . . . . . . . . . . . . . . . . . . . . . . . . . . . . . . . . . Matter . | . . . . . . . . . . . . . . . . . . . . . . . . . . . . . . . . . . . . . . . . . . . Time . | . . . . . . . . . . . . . . . . . . . . . . . . . . . . . . . . . . . . . . . . . . . Total Robot Build Rating . | . . . . . . . . . . . . . . . . . . . . . . . . . . . . . . . . . . . . . . . . . . . Part Schematics Acquired 11 | . . . . . . . . . . . 1 . . . . 5 . . . . . . . . . . 4 . . . . . . . 1 . . . . . . . Parts Built . | . . . . . . . . . . . . . . . . . . . . . . . . . . . . . . . . . . . . . . . . . . . Matter . | . . . . . . . . . . . . . . . . . . . . . . . . . . . . . . . . . . . . . . . . . . . Time . | . . . . . . . . . . . . . . . . . . . . . . . . . . . . . . . . . . . . . . . . . . . Total Part Build Rating . | . . . . . . . . . . . . . . . . . . . . . . . . . . . . . . . . . . . . . . . . . . . Parts Repaired 3 | . . . . . . . . . . . . . . . . . . . . . . . . . . . . . . . 1 . . . 2 . . . . . . . Time 163 | . . . . . . . . . . . . . . . . . . . . . . . . . . . . . . . 108 . . . 55 . . . . . . . Parts Recycled . | . . . . . . . . . . . . . . . . . . . . . . . . . . . . . . . . . . . . . . . . . . . Recycled Matter . | . . . . . . . . . . . . . . . . . . . . . . . . . . . . . . . . . . . . . . . . . . . Retrieved Matter . | . . . . . . . . . . . . . . . . . . . . . . . . . . . . . . . . . . . . . . . . . . . Retrieved Components 26 | . . . . . . . . . . . . . 2 . . . . . . 16 . . . . . . . . . . 3 5 . . . . . . . . . . Parts Scanalyzed 1 | . . . . . . . . . . . 1 . . . . . . . . . . . . . . . . . . . . . . . . . . . . . . . Part Schematics Acquired 1 | . . . . . . . . . . . 1 . . . . . . . . . . . . . . . . . . . . . . . . . . . . . . . Parts Damaged . | . . . . . . . . . . . . . . . . . . . . . . . . . . . . . . . . . . . . . . . . . . . Bothacking | -11 -10 -10 -9 -9 -9 -8 -8 -8 -8 -8 -7 -7 -7 -7 -7 -7 -7 -6 -6 -6 -6 -6 -6 -5 -5 -5 -5 -4 -4 -4 -4 -4 -4 -3 -3 -3 -2 -2 -2 -1 -1 -1 ------------ Run | Scr Mat Min Mat Min Exi Min Mat Gar Mat Gar Fac Was Fac Low Low Zio Dee Pro Fac Ext Cet Arc Hub Fac Upp Upp Zhi Pro Fac Was Fac Arm Lab Res Qua Gar Res Tes Sec Acc Com Ac0 Used RIF Installer 3 | . . . . . . . . 1 . 1 . . . . . . . . . . . . . . . . . . . . . . . . . 1 . . . . . . Coupler Efficiency 1 | . . . . . . . . . . . . . . . . . . . . . . . . . . . . . . . . . . . . 1 . . . . . . Structural Interface 1 | . . . . . . . . . . 1 . . . . . . . . . . . . . . . . . . . . . . . . . . . . . . . . Robots Hacked 76 | . . . . . 7 . . . 12 3 12 . . 3 6 2 . . . . . . 1 5 . . 3 . 1 . 4 1 . . 3 3 2 3 3 . 2 . Non-combat 17 | . . . . . 2 . . . . . 1 . . . . . . . . . . . 1 5 . . . . 1 . 4 . . . . . . 1 2 . . . Combat 59 | . . . . . 5 . . . 12 3 11 . . 3 6 2 . . . . . . . . . . 3 . . . . 1 . . 3 3 2 2 1 . 2 . Robot Hacks Applied 88 | . . . . . 7 . . . 13 3 14 . . 3 6 2 . . . . . . 1 8 . . 3 . 1 . 4 1 . . 4 3 2 3 8 . 2 . parse_system 25 | . . . . . 7 . . . . . . . . . . 2 . . . . . . . 4 . . 3 . . . 3 1 . . 1 . . 1 1 . 2 . find_chute 3 | . . . . . . . . . . . 2 . . . . . . . . . . . . . . . . . 1 . . . . . . . . . . . . . purge_threat 6 | . . . . . . . . . . . . . . . . . . . . . . . . 2 . . . . . . . . . . . . . . 4 . . . locate_traps 1 | . . . . . . . . . . . . . . . . . . . . . . . . . . . . . . . . . . . . . . . 1 . . . block_reporting 2 | . . . . . . . . . . . . . . . . . . . . . . . . . . . . . . . . . . . . . . 1 1 . . . map_route 3 | . . . . . . . . . . . . . . . . . . . . . . . . 2 . . . . . . 1 . . . . . . . . . . . redirect_shields 1 | . . . . . . . . . . . . . . . . . . . . . . . 1 . . . . . . . . . . . . . . . . . . . disable_scanner 2 | . . . . . . . . . . . . . . . . . . . . . . . . . . . . . . . . . . . 2 . . . . . . . locate_prototypes 3 | . . . . . . . . . . . . . . . . . . . . . . . . . . . . . . . . . . . 1 . . 1 1 . . . find_garrison 1 | . . . . . . . . . 1 . . . . . . . . . . . . . . . . . . . . . . . . . . . . . . . . . reboot_system 21 | . . . . . . . . . 11 1 9 . . . . . . . . . . . . . . . . . . . . . . . . . . . . . . . overwrite_iff 8 | . . . . . . . . . . 2 3 . . . . . . . . . . . . . . . . . . . . . . . . 1 2 . . . . . streamctrl_high 1 | . . . . . . . . . 1 . . . . . . . . . . . . . . . . . . . . . . . . . . . . . . . . . formatsys_high 11 | . . . . . . . . . . . . . . 3 6 . . . . . . . . . . . . . . . . . . . . 2 . . . . . . Relay Couplers Released 50 | . . . . . . . . 14 . 9 . . . . . . . . . . . . 1 . . . . . 4 . . . . 4 . 10 . 8 . . . . Ejected 8 | . . . . . . . . . . . . . . . . . . . . . . . . . . . . . 4 . . . . 4 . . . . . . . . Machine Destruction 34 | . . . . . . . . 14 . 9 . . . . . . . . . . . . 1 . . . . . . . . . . . . 10 . . . . . . Programmers 8 | . . . . . . . . . . . . . . . . . . . . . . . . . . . . . . . . . . . . . . 8 . . . . Attached 23 | . . . . . . . . . 3 2 1 . . 2 5 . . . . . . . 1 1 . . . . . . . . . . 1 3 1 1 2 . . . Robots Rewired 16 | . . . . . . . . . . . . . . 5 . . . . . 6 . . . . . . . . 1 . . 3 . . . 1 . . . . . . Allies Hacked 2 | . . . . . . . . . . . . . . . . . . . . . . . . . . . . . . . . . . . . . . 2 . . . . Hacks Repelled . | . . . . . . . . . . . . . . . . . . . . . . . . . . . . . . . . . . . . . . . . . . . Allies | -11 -10 -10 -9 -9 -9 -8 -8 -8 -8 -8 -7 -7 -7 -7 -7 -7 -7 -6 -6 -6 -6 -6 -6 -5 -5 -5 -5 -4 -4 -4 -4 -4 -4 -3 -3 -3 -2 -2 -2 -1 -1 -1 -------- Run | Scr Mat Min Mat Min Exi Min Mat Gar Mat Gar Fac Was Fac Low Low Zio Dee Pro Fac Ext Cet Arc Hub Fac Upp Upp Zhi Pro Fac Was Fac Arm Lab Res Qua Gar Res Tes Sec Acc Com Ac0 Total Allies 90 | . . 5 . 1 . . . . 1 2 2 20 . 8 6 2 . . . 12 5 . . . . . . . 1 1 . 4 . 2 3 4 2 3 . 3 3 . Largest Group 20 | . . 3 1 1 . . . . 1 1 1 20 20 8 8 7 2 1 . 12 12 5 4 . . . . . 1 2 . 4 4 4 2 2 2 3 . 3 3 . Highest-Rated Group 626 | . . 41 31 31 . . . . 18 18 20 472 472 202 209 209 179 94 . 497 626 413 319 . . . . . 47 93 . 100 100 112 112 128 116 207 . 359 357 . Highest-Rated Ally 156 | . . 31 31 31 . . . . 18 18 20 33 33 49 49 94 94 94 . 156 156 94 94 . . . . . 47 47 . 30 30 56 56 115 58 69 . 124 122 . Total Orders 45 | . . . . . . . . . . . . . . 2 7 15 . . . . . . 8 2 5 . . . . . . . 2 1 . . . . . . 3 . STAY 5 | . . . . . . . . . . . . . . . . 2 . . . . . . 1 . . . . . . . . . 1 . . . . . . . 1 . GOTO 24 | . . . . . . . . . . . . . . 2 5 10 . . . . . . 4 . 2 . . . . . . . . . . . . . . . 1 . ROAM 1 | . . . . . . . . . . . . . . . . . . . . . . . . . 1 . . . . . . . . . . . . . . . . . FOLLOW 10 | . . . . . . . . . . . . . . . 2 3 . . . . . . 3 . 1 . . . . . . . 1 . . . . . . . . . EXPLORE 3 | . . . . . . . . . . . . . . . . . . . . . . . . 1 . . . . . . . . . 1 . . . . . . 1 . RETURN 2 | . . . . . . . . . . . . . . . . . . . . . . . . 1 1 . . . . . . . . . . . . . . . . . Ally Attacks 731 | . . 25 12 2 . . . . 1 5 5 . 41 4 56 131 30 5 . 84 80 24 98 . . . . . . 16 . . . 37 . 28 8 23 . 16 . . Total Damage 19244 | . . 272 213 21 . . . . 34 150 78 . 1238 83 927 3382 960 141 . 1802 1761 806 3413 . . . . . . 563 . . . 981 . 830 250 772 . 567 . . Kills 142 | . . 7 6 1 . . . . . 2 1 . 9 2 9 31 7 1 . 9 17 2 21 . . . . . . 2 . . . 6 . 5 1 2 . 1 . . Allies Corrupted 7 | . . . . . . . . . . . . . . . . . . . . . . . . . . . . . . 1 . . . . . 3 . 2 . . 1 . Allies Melted 2 | . . . . . . . . . . . . . 1 . . . . . . . . . . . . . . . . . . . . 1 . . . . . . . . Intel | -11 -10 -10 -9 -9 -9 -8 -8 -8 -8 -8 -7 -7 -7 -7 -7 -7 -7 -6 -6 -6 -6 -6 -6 -5 -5 -5 -5 -4 -4 -4 -4 -4 -4 -3 -3 -3 -2 -2 -2 -1 -1 -1 ------- Run | Scr Mat Min Mat Min Exi Min Mat Gar Mat Gar Fac Was Fac Low Low Zio Dee Pro Fac Ext Cet Arc Hub Fac Upp Upp Zhi Pro Fac Was Fac Arm Lab Res Qua Gar Res Tes Sec Acc Com Ac0 Robot Analysis Total 7 | . . . . . . . . . . . . . 1 . . . . . . . . . . . . . 4 . . . . . . . 2 . . . . . . . Derelict Logs Recovered 11 | . . . . 1 . . . . . . . . . 2 1 1 . 2 . . . . . . 1 1 . 2 . . . . . . . . . . . . . . Drone Launches 7 | . . . . . . . . . . . . . . . . . . . . . . . . 3 . . . . . . . . . 2 . . . . . . 2 . Drone Recoveries . | . . . . . . . . . . . . . . . . . . . . . . . . . . . . . . . . . . . . . . . . . . . Exploration | -11 -10 -10 -9 -9 -9 -8 -8 -8 -8 -8 -7 -7 -7 -7 -7 -7 -7 -6 -6 -6 -6 -6 -6 -5 -5 -5 -5 -4 -4 -4 -4 -4 -4 -3 -3 -3 -2 -2 -2 -1 -1 -1 ------------- Run | Scr Mat Min Mat Min Exi Min Mat Gar Mat Gar Fac Was Fac Low Low Zio Dee Pro Fac Ext Cet Arc Hub Fac Upp Upp Zhi Pro Fac Was Fac Arm Lab Res Qua Gar Res Tes Sec Acc Com Ac0 Turns Passed 65844 | 84 225 1476 1380 1268 948 1196 480 2082 1339 752 1862 767 1937 2399 1895 11498 3533 1575 206 1635 577 419 1799 1607 2055 1819 937 1562 529 801 1941 1143 409 872 1615 946 1341 1600 2208 165 2566 396 Spaces Moved 26598 | 47 127 827 626 680 474 540 183 835 445 293 609 295 713 1178 886 1871 1591 829 114 796 257 85 713 665 1072 944 340 686 240 339 639 394 171 372 624 419 499 685 993 96 1997 409 Core 40 | 6 . . . . . . . . . . . . . . . . . . . . . . . . . . . . . . . . . . . . . . . . . 34 Treads 22644 | 41 127 827 626 680 474 540 183 835 445 293 609 295 712 1178 886 1871 1374 829 114 796 257 85 713 665 1072 944 340 686 240 339 639 394 171 372 624 419 499 450 . . . . Legs 1589 | . . . . . . . . . . . . . . . . . 217 . . . . . . . . . . . . . . . . . . . . 235 993 96 48 . Wheels 1 | . . . . . . . . . . . . . 1 . . . . . . . . . . . . . . . . . . . . . . . . . . . . . Hover 2324 | . . . . . . . . . . . . . . . . . . . . . . . . . . . . . . . . . . . . . . . . . 1949 375 Flight . | . . . . . . . . . . . . . . . . . . . . . . . . . . . . . . . . . . . . . . . . . . . Fastest Speed 29 | 50 160 160 160 180 180 200 185 225 205 185 225 200 170 200 200 200 170 180 180 180 180 180 180 160 180 180 180 200 200 200 200 205 205 172 172 172 172 120 120 130 80 29 Average Speed 178 | 149 160 160 177 180 194 200 222 225 221 218 225 205 215 200 200 200 185 180 180 180 180 180 180 179 180 180 180 200 200 202 207 205 205 172 173 172 172 158 132 130 89 56 Slowest Speed 400 | 160 160 160 180 180 200 200 225 225 225 225 237 237 220 200 200 200 240 180 180 200 180 180 240 180 180 180 200 200 200 220 400 205 205 172 192 172 172 172 140 130 205 120 Overloaded Moves 96 | . . . . . . . . . . . . . . . . . . . . . . . . . . . . . . . . . . . . . . . . . . 96 Propulsion Burnouts . | . . . . . . . . . . . . . . . . . . . . . . . . . . . . . . . . . . . . . . . . . . . Robots Hopped 1 | . . . . . . . . . . . . . . . . . . . . . . . . . 1 . . . . . . . . . . . . . . . . . Cave-ins Triggered . | . . . . . . . . . . . . . . . . . . . . . . . . . . . . . . . . . . . . . . . . . . . Teleports 2 | . . . . . . . . . . . . . . . . . . . . . . . . . . . . . . . . . . . . . . . . . 1 1 Exploration Rate (%) 61 | 3 20 92 61 99 91 99 17 91 42 55 22 97 26 97 95 90 84 74 4 86 73 82 71 25 96 97 62 87 6 88 24 31 96 20 76 86 20 63 62 5 91 35 Regions Visited 42 Branch Regions 24 Pre-discovered Areas 12 | . 1 . 2 . 1 . . . 2 . 1 . . . . . . 1 . . . . . . 1 . 3 . . . . . . . . . . . . . . . Known Exits Taken 23 | . . . . . . . 1 . 1 . . . 1 1 1 1 1 1 1 1 1 1 1 1 . . . . . . 1 1 1 1 1 . 1 1 1 1 . . Unknown Exits Taken 12 | 1 1 1 1 1 1 1 . . . . . . . . . . . . . . . . . . 1 1 1 1 . . . . . . . . . . . . 1 . Scrap Searched 19 | . . 2 . . . 1 . . . . . . . 4 2 2 . 2 . . . . . . 2 2 . 2 . . . . . . . . . . . . . . Spaces Dug 245 | . . . 1 32 . . 14 . 8 . 10 . 7 . 1 . 8 26 . 5 1 . 11 6 2 . . 4 3 3 19 10 . 10 18 8 13 11 6 2 . 6 Terrain Destroyed 4797 | . . . 1 133 . 166 14 77 40 2 42 . 17 . 45 89 9 30 . 23 11 3 668 113 12 13 . 19 3 4 44 30 . 18 44 22 110 44 74 4 8 2865 Melee 13 | . . . . . . . . . . . 5 . 7 . 1 . . . . . . . . . . . . . . . . . . . . . . . . . . . Projectile 359 | . . . 1 . . . . . 6 . . . 10 . 2 . 9 30 . 7 11 3 30 15 2 . . 19 3 4 44 30 . 18 37 8 34 12 9 4 . 11 AOE 4425 | . . . . 133 . 166 14 77 34 2 37 . . . 42 89 . . . 16 . . 638 98 10 13 . . . . . . . . 7 14 76 32 65 . 8 2854 Actions | -11 -10 -10 -9 -9 -9 -8 -8 -8 -8 -8 -7 -7 -7 -7 -7 -7 -7 -6 -6 -6 -6 -6 -6 -5 -5 -5 -5 -4 -4 -4 -4 -4 -4 -3 -3 -3 -2 -2 -2 -1 -1 -1 --------- Run | Scr Mat Min Mat Min Exi Min Mat Gar Mat Gar Fac Was Fac Low Low Zio Dee Pro Fac Ext Cet Arc Hub Fac Upp Upp Zhi Pro Fac Was Fac Arm Lab Res Qua Gar Res Tes Sec Acc Com Ac0 Total 41531 | 58 145 900 784 705 494 589 251 955 669 393 906 398 941 1210 959 9504 2133 874 116 929 324 307 995 916 1143 1015 634 838 279 401 1044 630 229 511 973 550 783 1052 1787 123 2560 524 Wait 9495 | . 3 16 16 . . 1 25 7 62 21 98 18 29 3 14 7476 411 22 . 42 17 194 57 16 22 11 211 117 . . 132 46 31 25 132 24 52 20 49 4 67 4 Move 26558 | 46 126 826 625 679 473 539 183 834 445 292 609 294 712 1177 885 1870 1590 828 113 795 256 84 712 664 1069 943 339 685 240 338 638 393 170 371 624 418 498 684 992 95 1996 408 Hop 1 | . . . . . . . . . . . . . . . . . . . . . . . . . 1 . . . . . . . . . . . . . . . . . Pick Up 597 | 6 9 4 20 2 5 1 21 17 22 26 20 17 48 3 2 20 16 1 1 3 3 1 8 31 3 3 14 5 7 7 29 25 7 13 23 7 18 41 38 . 40 10 Fast Attach 254 | 6 1 . 12 . 1 . . 1 6 1 2 2 7 . . 6 10 . . 2 6 . . 12 . 7 5 . 1 1 18 16 6 8 10 5 7 27 20 . 33 15 Attach 368 | . . . . 1 2 2 2 5 7 1 13 1 5 3 2 6 7 2 1 . . . 10 24 3 3 6 1 3 3 14 18 . 10 14 6 28 37 61 2 35 30 Detach 214 | . . . . . 2 . 1 1 . . 2 . 2 . . 3 6 . . . . . . 12 . 3 8 2 3 6 26 14 6 7 6 2 11 20 46 1 18 6 Swap 553 | . 1 . 12 2 1 4 6 11 21 9 37 3 24 6 28 19 12 . . 10 7 5 28 29 21 20 6 6 4 . 14 7 1 10 29 20 34 24 61 5 14 2 Drop 612 | . 3 4 33 1 2 . 5 8 23 24 10 28 15 3 . 20 36 1 1 3 9 1 5 20 1 5 15 3 5 12 39 40 5 14 27 9 12 53 36 1 69 11 Fire 2489 | . 2 37 61 14 . 34 8 53 42 8 75 35 78 15 25 84 42 20 . 34 26 21 166 99 23 20 24 19 12 34 130 71 3 50 94 51 117 129 453 14 228 38 Melee 121 | . . . . . 8 . . . 39 7 38 . 7 . 1 . . . . . . . . . . . . . . . . . . . . . . 12 9 . . . Ram . | . . . . . . . . . . . . . . . . . . . . . . . . . . . . . . . . . . . . . . . . . . . Kick 10 | . . . . . . . . . . . . . . . . . . . . . . . . . . . . . . . . . . . . . . . 9 1 . . Crush 106 | . . 13 5 6 . 8 . . 2 . 2 . 14 . 1 . . . . 4 . 1 9 8 . . . . 4 . 4 . . 2 14 . 6 3 . . . . Escape Stasis 101 | . . . . . . . . 18 . 4 . . . . . . . . . 6 . . . . . . . . . . . . . . . 8 . . 13 . 52 . Rewire 47 | . . . . . . . . . . . . . . . 1 . . . . 30 . . . . . . 6 . . . . . . . . . . 2 . . 8 . Trap 3 | . . . . . . . . . . . . . . . . . 3 . . . . . . . . . . . . . . . . . . . . . . . . . Miscellaneous 2 | . . . . . . . . . . . . . . . . . . . . . . . . 1 . . . . . . . . . 1 . . . . . . . . Route ------- -11/Scrapyard -10/Materials -10/Mines (discovered 2 exits: *Mat x2) -9/Materials (discovered 3 exits: *Mat x2 / [*Min]) -9/Mines (discovered 4 exits: *Mat x2 / *Exi / *Zio) -9/Exiles (discovered 2 exits: [*Min x2]) -8/Mines (discovered 2 exits: *Mat x2) -8/Materials (discovered 2 exits: Fac / Gar) -8/Garrison (discovered 3 exits: *Mat x3) -8/Materials (discovered 3 exits: *Fac x2 / Gar) -8/Garrison -7/Factory -7/Waste -7/Factory (discovered 4 exits: *Sto x2 / *Low x2) -7/Lower Caves -7/Lower Caves (discovered 2 exits: *Fac / *Zio) -7/Zion (discovered 2 exits: *Dee / *Pro) -7/Deep Caves -6/Proximity Caves -6/Factory (discovered 2 exits: Low / *Ext) -6/Extension (discovered 2 exits: *Fac / *Cet) -6/Cetus (discovered 3 exits: *Fac x2 / *Arc) -6/Archives (discovered 2 exits: *Hub x2) -6/Hub_04(d) (discovered 4 exits: *Fac x4) -5/Factory (discovered 4 exits: Fac / *Upp x2 / Gar) -5/Upper Caves -5/Upper Caves (discovered 2 exits: *Fac / *Zhi) -5/Zhirov -4/Proximity Caves -4/Factory (discovered 3 exits: Upp x2 / Arm) -4/Waste -4/Factory (discovered 5 exits: *Res x2 / *Upp x2 / *Arm) -4/Armory (discovered 2 exits: Res / *Lab) -4/Lab -3/Research (discovered 4 exits: Res x3 / *Qua) -3/Quarantine (discovered 2 exits: *Res / Gar) -3/Garrison (discovered 3 exits: *Res x3) -2/Research (discovered 5 exits: Acc x3 / *Tes x2) -2/Testing -2/Section 7 (discovered 2 exits: *Acc / Gar) -1/Access (discovered 2 exits: Sur / *Com) -1/Command (discovered 3 exits: *Sur x2 / [*Ac0]) -1/Access_0 To Epsilon Eridani History --------- Turn | Location | Event 27 | -11/Scrapyard | Discovered new exit (range 16) 85 | -11/Scrapyard | Entered Materials 138 | -10/Materials | Discovered new exit (range 12) 302 | -10/Materials | Build established: Mutant 310 | -10/Materials | Entered Mines 365 | -10/Mines | Met a Derelict bent on vengeance 416 | -10/Mines | Discovered new exit (range 5) 458 | -10/Mines | Discovered new exit (range 15) 715 | -10/Mines | Assisted by bots powering up and referring to "LRC-V3" 868 | -10/Mines | Assembled infested the area 1112 | -10/Mines | A weapon hastily lodged in a ceiling crevice suddenly fell to the ground 1786 | -10/Mines | Entered Materials 1786 | -9/Materials | Accompanied by 1 ally 1786 | -9/Materials | Evolved 2 slots: Utility x2 1791 | -9/Materials | Led the pair of lost Derelicts to an unsafe place 2462 | -9/Materials | Discovered new exit (range 6) 2612 | -9/Materials | Discovered new exit (range 9) 2909 | -9/Materials | Discovered new exit (range 14) 3166 | -9/Materials | Entered Mines 3167 | -9/Mines | A Derelict revealed a hidden shortcut to a safe place 3314 | -9/Mines | Discovered new exit (range 9) 3424 | -9/Mines | Learned location of 1 exit from Materials 3435 | -9/Mines | Found a damaged Exp. Sensor Array with a note attached 3442 | -9/Mines | Found Prototype Device 3499 | -9/Mines | Received a Mining Laser from a helpful Derelict 3506 | -9/Mines | Discovered new exit (range 15) 3734 | -9/Mines | Deemed a non-threat by the Exiles lab entrance 3736 | -9/Mines | Discovered new exit (range 5) 3828 | -9/Mines | Destroyed 8 combat bots 3840 | -9/Mines | Build established: Hauler-Mutant 4434 | -9/Mines | Entered Exiles 4461 | -9/Exiles | Discovered new exit (range 14) 4514 | -9/Exiles | Met 8R-AWN 4550 | -9/Exiles | Met EX-HEX 4742 | -9/Exiles | Met EX-DEC 4813 | -9/Exiles | Visited The Gauntlet 5044 | -9/Exiles | Learned location of Zion (-7) 5092 | -9/Exiles | Met EX-BIN 5360 | -9/Exiles | Discovered new exit (range 14) 5382 | -9/Exiles | Entered Mines 5474 | -8/Mines | Discovered new exit (range 12) 5758 | -8/Mines | Discovered new exit (range 6) 6578 | -8/Mines | Entered Materials 6578 | -8/Materials | Evolved 2 slots: Utility x2 6579 | -8/Materials | Identified exit to Factory 7056 | -8/Materials | Identified exit to Garrison 7058 | -8/Materials | Entered Garrison 7145 | -8/Garrison | Triggered checkpoint 7246 | -8/Garrison | Discovered new exit (range 10) 7352 | -8/Garrison | Triggered checkpoint 7485 | -8/Garrison | Discovered new exit (range 14) 7610 | -8/Garrison | Triggered checkpoint 7811 | -8/Garrison | Discovered new exit (range 5) 7835 | -8/Garrison | Installed Relay Interface Framework 7862 | -8/Garrison | Phase Generator disabled 7980 | -8/Garrison | Triggered checkpoint 8084 | -8/Garrison | Garrison Relay disabled 8223 | -8/Garrison | Garrison Relay disabled 8458 | -8/Garrison | Triggered checkpoint 8620 | -8/Garrison | Garrison Relay disabled 8866 | -8/Garrison | Triggered checkpoint 8922 | -8/Garrison | Build established: Bothacker-Mutant 8942 | -8/Garrison | Garrison Relay disabled 9140 | -8/Garrison | Entered Materials 9302 | -8/Materials | Lost 3 parts (2n1u) 10027 | -8/Materials | Core integrity fell below 50% 10058 | -8/Materials | Discovered exit to Factory (range 13) 10340 | -8/Materials | First assault squad dispatched 10416 | -8/Materials | Discovered exit to Factory (range 14) 10479 | -8/Materials | Identified exit to Garrison 10479 | -8/Materials | Entered Garrison 10491 | -8/Garrison | Expanded RIF knowledge: Structural Interface 10546 | -8/Garrison | Triggered checkpoint 10776 | -8/Garrison | Garrison Relay disabled 10909 | -8/Garrison | Triggered checkpoint 11050 | -8/Garrison | Triggered checkpoint 11115 | -8/Garrison | Garrison Relay disabled 11153 | -8/Garrison | Discovered exit to Factory (range 10) 11231 | -8/Garrison | Entered Factory 11231 | -7/Factory | Evolved 2 slots: Utility x2 12274 | -7/Factory | Discovered new exit (range 15) 12431 | -7/Factory | First assault squad dispatched 12604 | -7/Factory | Identified Exp. Sensor Array 13093 | -7/Factory | Sucked down chute 13093 | -7/Factory | Entered Waste 13094 | -7/Waste | Joined by Warlord forces that had cleared the area 13290 | -7/Waste | Found Damper Plating 13333 | -7/Waste | Found Damper Plating 13497 | -7/Waste | Found Damper Plating 13593 | -7/Waste | Found Damper Plating 13770 | -7/Waste | Discovered new exit (range 12) 13860 | -7/Waste | Entered Factory 13860 | -7/Factory | Accompanied by 20 allies 14033 | -7/Factory | Assembled infested ambush trap array 14117 | -7/Factory | Discovered new exit (range 24) 14957 | -7/Factory | Identified exit to Storage 14957 | -7/Factory | Identified exit to Lower Caves 15797 | -7/Factory | Entered Lower Caves 16213 | -7/Lower Caves | Encountered a Warlord checkpoint 16318 | -7/Lower Caves | Learned 4 Factory zone layouts 16752 | -7/Lower Caves | Learned 4 Factory zone layouts 16824 | -7/Lower Caves | Discovered new exit (range 12) 16884 | -7/Lower Caves | Identified exit to Lower Caves 17815 | -7/Lower Caves | Attacked by a delusional Derelict stockpiling Unaware 18196 | -7/Lower Caves | Entered another Lower Caves area 18196 | -7/Lower Caves | Accompanied by 8 allies 18256 | -7/Lower Caves | Discovered new exit (range 13) 18262 | -7/Lower Caves | Learned 4 Factory zone layouts 18290 | -7/Lower Caves | Identified exit to Factory 18302 | -7/Lower Caves | Attracted the attention of an 0b10 checkpoint 18761 | -7/Lower Caves | Acquired the password to a Derelict Tinkerer's latest research 18776 | -7/Lower Caves | Found Prototype Special Weapon 19010 | -7/Lower Caves | Caught by Unaware searching for contraband prototypes 19714 | -7/Lower Caves | Discovered new exit (range 9) 19740 | -7/Lower Caves | Identified exit to Zion 20091 | -7/Lower Caves | Entered Zion 20091 | -7/Zion | Accompanied by 7 allies 20115 | -7/Zion | Given A8's code to call for help 20117 | -7/Zion | Build established: Hauler-Mutant 20169 | -7/Zion | System corruption cleaned by Quarantine Array 20231 | -7/Zion | Discovered new exit (range 11) 20251 | -7/Zion | Identified exit to Proximity Caves 28169 | -7/Zion | RIF detected upon attempting to enter Zion 28169 | -7/Zion | Attacked by Zionites 28219 | -7/Zion | CL-ANK came to Zion's defense 28236 | -7/Zion | Destroyed CL-ANK 28286 | -7/Zion | Destroyed Imprinter 28298 | -7/Zion | Extracted access codes from Imprinter's data core 28396 | -7/Zion | Identified exit to Deep Caves 29275 | -7/Zion | Enhanced Grunt warped into view, answering call for help 29276 | -7/Zion | Enhanced Grunt warped into view, answering call for help 29346 | -7/Zion | Opened final containment barrier to the Deep Caves 29378 | -7/Zion | Saw the warning signs outside the Deep Caves entrance 29645 | -7/Zion | Found Prototype Device 29645 | -7/Zion | Identified Bomb Factory No. 2 29957 | -7/Zion | Found CL-ANK's Mallet 29976 | -7/Zion | Found Exp. Melee Analysis Suite 31589 | -7/Zion | Entered Deep Caves 31589 | -7/Deep Caves | Accompanied by 2 allies 32063 | -7/Deep Caves | Z-Facility disabled 32219 | -7/Deep Caves | Build established: Scavenger-Mutant 32269 | -7/Deep Caves | Found Prototype Protection 32269 | -7/Deep Caves | Identified Zio. Heavy Carapace 32284 | -7/Deep Caves | Found Zio. Heavy Carapace 32597 | -7/Deep Caves | Found Surveybot 24 Chip 32598 | -7/Deep Caves | Build established: Hauler-Mutant 33036 | -7/Deep Caves | Discovered new exit (range 6) 33635 | -7/Deep Caves | Destroyed as-29613 33740 | -7/Deep Caves | Exposed GOLEM chamber 33754 | -7/Deep Caves | Found GOLEM Unit 34174 | -7/Deep Caves | Found GOLEM Unit 34648 | -7/Deep Caves | Identified exit to Proximity Caves 35122 | -7/Deep Caves | Entered Proximity Caves 35122 | -6/Proximity Caves | Accompanied by 1 ally 35916 | -6/Proximity Caves | Discovered exit to Factory (range 6) 36091 | -6/Proximity Caves | Learned Factory trap positions 36697 | -6/Proximity Caves | Entered Factory 36697 | -6/Factory | Evolved 2 slots: Propulsion x1, Utility x1 36698 | -6/Factory | Identified exit to Lower Caves 36699 | -6/Factory | Loaded intel: 86 trap records 36896 | -6/Factory | Discovered new exit (range 6) 36902 | -6/Factory | Identified exit to Extension 36903 | -6/Factory | Entered Extension 36959 | -6/Extension | Rescued a captive Derelict 37020 | -6/Extension | Rescued a captive Derelict 37021 | -6/Extension | Rescued a captive Derelict 37146 | -6/Extension | Rescued A7 37566 | -6/Extension | Allies destroyed B-75 Beast 37622 | -6/Extension | Spotted B-75 Beast 37638 | -6/Extension | Destroyed B-75 Beast 37921 | -6/Extension | Energy Cycler disabled 37922 | -6/Extension | Rescued a captive Derelict 37926 | -6/Extension | Rescued a captive Derelict 37939 | -6/Extension | Rescued a captive Derelict 38509 | -6/Extension | Discovered new exit (range 10) 38511 | -6/Extension | Discovered new exit (range 6) 38520 | -6/Extension | Identified exit to Cetus 38523 | -6/Extension | Identified exit to Factory 38538 | -6/Extension | Entered Cetus 38538 | -6/Cetus | Accompanied by 12 allies 38543 | -6/Cetus | Acquired a Cetus Manufacturing Module code from A7 38632 | -6/Cetus | Spotted Cetus Guard 38632 | -6/Cetus | Spotted Cetus Guard 38633 | -6/Cetus | Allies destroyed Cetus Guard 38634 | -6/Cetus | Spotted Cetus Guard 38634 | -6/Cetus | Spotted Cetus Guard 38641 | -6/Cetus | Allies destroyed Cetus Guard 38644 | -6/Cetus | Allies destroyed Cetus Guard 38647 | -6/Cetus | Allies destroyed Cetus Guard 38687 | -6/Cetus | Discovered exit to Factory (range 15) 38868 | -6/Cetus | Started Cetus Manufacturing Module 38884 | -6/Cetus | Escorted A7 to Cetus Mainframe 38893 | -6/Cetus | Manufactured an Enhanced Grunt 38906 | -6/Cetus | Discovered new exit (range 15) 38918 | -6/Cetus | Manufactured an Enhanced Grunt 38943 | -6/Cetus | Manufactured an Enhanced Grunt 38961 | -6/Cetus | Spotted Cetus Guard 38967 | -6/Cetus | Spotted Cetus Guard 38968 | -6/Cetus | Manufactured an Enhanced Grunt 38969 | -6/Cetus | Spotted Cetus Guard 38969 | -6/Cetus | Spotted Cetus Guard 38974 | -6/Cetus | Allies destroyed Cetus Guard 38982 | -6/Cetus | Allies destroyed Cetus Guard 38984 | -6/Cetus | Allies destroyed Cetus Guard 38986 | -6/Cetus | Allies destroyed Cetus Guard 38987 | -6/Cetus | Discovered exit to Factory (range 15) 38989 | -6/Cetus | Found Prototype Device 38989 | -6/Cetus | Identified Exp. Thermal Shield 38993 | -6/Cetus | Manufactured an Enhanced Grunt 39005 | -6/Cetus | Met Revision 17 39077 | -6/Cetus | Identified exit to Archives 39110 | -6/Cetus | Destroyed A7 39113 | -6/Cetus | Extracted ID and sensor layout for unrecognized location from A7's data core 39115 | -6/Cetus | Entered Archives 39115 | -6/Archives | Accompanied by 5 allies 39202 | -6/Archives | Discovered new exit (range 15) 39227 | -6/Archives | Identified exit to Hub_04(d) 39394 | -6/Archives | Discovered exit to Hub_04(d) (range 15) 39534 | -6/Archives | Entered Hub_04(d) 39534 | -6/Hub_04(d) | Accompanied by 4 allies 39543 | -6/Hub_04(d) | Discovered exit to Factory (range 15) 39855 | -6/Hub_04(d) | Discovered exit to Factory (range 10) 40115 | -6/Hub_04(d) | Discovered exit to Factory (range 16) 40584 | -6/Hub_04(d) | First assault squad dispatched 40688 | -6/Hub_04(d) | Discovered exit to Factory (range 5) 40927 | -6/Hub_04(d) | Spotted B-75 Beast 40929 | -6/Hub_04(d) | Destroyed B-75 Beast 40939 | -6/Hub_04(d) | Network Hub disabled 40947 | -6/Hub_04(d) | Network Hub disabled 40966 | -6/Hub_04(d) | Disrupted transfer network 40996 | -6/Hub_04(d) | Spotted Lightning 41000 | -6/Hub_04(d) | Spotted Lightning 41003 | -6/Hub_04(d) | Spotted Lightning 41005 | -6/Hub_04(d) | Spotted Lightning 41009 | -6/Hub_04(d) | Spotted Lightning 41010 | -6/Hub_04(d) | Spotted Lightning 41027 | -6/Hub_04(d) | Destroyed Lightning 41027 | -6/Hub_04(d) | Destroyed Lightning 41044 | -6/Hub_04(d) | Spotted Lightning 41045 | -6/Hub_04(d) | Spotted Lightning 41061 | -6/Hub_04(d) | Destroyed Lightning 41064 | -6/Hub_04(d) | Spotted Lightning 41098 | -6/Hub_04(d) | Destroyed Lightning 41107 | -6/Hub_04(d) | Destroyed Lightning 41152 | -6/Hub_04(d) | High security lockdown imminent 41159 | -6/Hub_04(d) | Destroyed Lightning 41178 | -6/Hub_04(d) | Spotted Lightning 41180 | -6/Hub_04(d) | Spotted Lightning 41182 | -6/Hub_04(d) | Spotted Lightning 41184 | -6/Hub_04(d) | Destroyed Lightning 41187 | -6/Hub_04(d) | Found Prototype Device 41232 | -6/Hub_04(d) | High security lockdown engaged 41234 | -6/Hub_04(d) | Network Hub disabled 41238 | -6/Hub_04(d) | System corruption reached 10% 41239 | -6/Hub_04(d) | Network Hub disabled 41239 | -6/Hub_04(d) | Identified EM Dispersion Field 41269 | -6/Hub_04(d) | Lost 3 parts (1n1u1w) 41328 | -6/Hub_04(d) | Destroyed 8 combat bots 41329 | -6/Hub_04(d) | Destroyed Lightning 41333 | -6/Hub_04(d) | Entered Factory 41333 | -5/Factory | Evolved 2 slots: Power x1, Utility x1 41363 | -5/Factory | Lost 5 parts (1p2n2w) 41385 | -5/Factory | Spotted B-75 Beast 41702 | -5/Factory | Build established: Scavenger-Mutant 41821 | -5/Factory | Discovered new exit (range 96) 41933 | -5/Factory | First assault squad dispatched 42095 | -5/Factory | Lost 6 parts (1p1n3u1w) 42102 | -5/Factory | Identified exit to Garrison 42402 | -5/Factory | Identified exit to Upper Caves 42567 | -5/Factory | Build established: Hauler-Mutant 42930 | -5/Factory | Build established: Scavenger-Mutant 42940 | -5/Factory | Entered Upper Caves 42940 | -5/Upper Caves | Accompanied by 2 allies 43204 | -5/Upper Caves | Ambushed by wild Derelicts 43532 | -5/Upper Caves | Build established: Hauler-Skirmisher 43824 | -5/Upper Caves | Attracted the attention of an 0b10 checkpoint 43975 | -5/Upper Caves | Discovered new exit (range 7) 44995 | -5/Upper Caves | Entered another Upper Caves area 45012 | -5/Upper Caves | Learned Factory stockpile data 45080 | -5/Upper Caves | Discovered new exit (range 20) 45147 | -5/Upper Caves | Encountered a Warlord checkpoint 45644 | -5/Upper Caves | Attracted the attention of an 0b10 checkpoint 45808 | -5/Upper Caves | Discovered new exit (range 15) 46814 | -5/Upper Caves | Entered Zhirov 46816 | -5/Zhirov | Discovered new exit (range 3) 46849 | -5/Zhirov | Met Zhirov 46881 | -5/Zhirov | Learned location of Testing (-2) 46881 | -5/Zhirov | Learned location of Command (-1) 46915 | -5/Zhirov | Zhirov requested help retrieving the SGEMP Prototype 46948 | -5/Zhirov | Found Alien Artifact 46948 | -5/Zhirov | Identified Integrated Reactor 46948 | -5/Zhirov | Installed Integrated Reactor, increased core energy generation (+2%) 46976 | -5/Zhirov | Found Alien Artifact 47141 | -5/Zhirov | Build established: Hauler-Mutant 47751 | -5/Zhirov | Entered Proximity Caves 47763 | -4/Proximity Caves | Learned 4 Research zone layouts 47822 | -4/Proximity Caves | Attracted the attention of an 0b10 checkpoint 48487 | -4/Proximity Caves | Discovered new exit (range 5) 49313 | -4/Proximity Caves | Entered Factory 49313 | -4/Factory | Evolved 2 slots: Utility x2 49547 | -4/Factory | Identified exit to Upper Caves 49547 | -4/Factory | Identified exit to Armory 49842 | -4/Factory | Sucked down chute 49842 | -4/Factory | Entered Waste 49843 | -4/Waste | Met a frightened Derelict 49843 | -4/Waste | Identified Molecular Deconstructor 49857 | -4/Waste | EMP discharged 49860 | -4/Waste | Spotted C-40 Crusher 49870 | -4/Waste | 1 allies followed down the chute 49877 | -4/Waste | Destroyed C-40 Crusher 49879 | -4/Waste | Spotted C-40 Crusher 49892 | -4/Waste | Allies destroyed C-40 Crusher 49906 | -4/Waste | Found Damper Plating 49915 | -4/Waste | Spotted C-40 Crusher 49915 | -4/Waste | Spotted C-40 Crusher 49933 | -4/Waste | Destroyed C-40 Crusher 49937 | -4/Waste | Allies destroyed C-40 Crusher 49939 | -4/Waste | Spotted C-40 Crusher 49946 | -4/Waste | Destroyed C-40 Crusher 49957 | -4/Waste | EMP discharged 50004 | -4/Waste | Spotted C-40 Crusher 50015 | -4/Waste | Destroyed C-40 Crusher 50029 | -4/Waste | Found Damper Plating 50057 | -4/Waste | EMP discharged 50123 | -4/Waste | Discovered new exit (range 10) 50157 | -4/Waste | EMP discharged 50257 | -4/Waste | EMP discharged 50357 | -4/Waste | EMP discharged 50457 | -4/Waste | EMP discharged 50557 | -4/Waste | EMP discharged 50643 | -4/Waste | Entered Factory 50879 | -4/Factory | Discovered new exit (range 14) 51033 | -4/Factory | Discovered new exit (range 129) 51370 | -4/Factory | Repaired Centrium Heavy Treads 51512 | -4/Factory | Lost 3 parts (1n2u) 51710 | -4/Factory | Discovered exit to Upper Caves (range 9) 51974 | -4/Factory | Spotted B-86 Titan 52584 | -4/Factory | Entered Armory 52977 | -4/Armory | Found Prototype Device 52977 | -4/Armory | Identified EM Disruption Field 53445 | -4/Armory | Discovered new exit (range 20) 53718 | -4/Armory | Discovered new exit (range 3) 53720 | -4/Armory | Identified exit to Lab 53727 | -4/Armory | Entered Lab 53727 | -4/Lab | Accompanied by 4 allies 53727 | -4/Lab | Discovered new exit (range 9) 53742 | -4/Lab | Identified exit to Research 53750 | -4/Lab | Hidden lab's door opened automatically 53750 | -4/Lab | Sensor layout match revealed 53751 | -4/Lab | Gained access to the hidden lab's interior 53760 | -4/Lab | Unable to decrypt terminal 53764 | -4/Lab | Unable to decrypt terminal 53803 | -4/Lab | Found Prototype Special Weapon 53803 | -4/Lab | Identified Gui. Remote Datajack 53832 | -4/Lab | Unable to decrypt terminal 53853 | -4/Lab | Found Prototype Energy Cannon 53853 | -4/Lab | Identified Potential Cannon 53859 | -4/Lab | Found Prototype Energy Cannon 53859 | -4/Lab | Identified Warp Cannon 53866 | -4/Lab | Found Prototype Device 53866 | -4/Lab | Identified AEGIS Remote Shield 53933 | -4/Lab | Found Deep Network Scanner 53986 | -4/Lab | Found Alien Artifact 54000 | -4/Lab | Found Integrated Reactor 54000 | -4/Lab | Installed Integrated Reactor, increased core energy generation (+2%) 54015 | -4/Lab | Found Alien Artifact 54092 | -4/Lab | Found Alien Artifact 54136 | -4/Lab | Entered Research 54136 | -3/Research | Accompanied by 4 allies 54136 | -3/Research | Evolved 2 slots: Propulsion x1, Utility x1 54188 | -3/Research | Identified exit to Research 54256 | -3/Research | Found Prototype Device 54256 | -3/Research | Identified Exp. Shield Generator 54347 | -3/Research | Revision forces began assault on 0b10 54441 | -3/Research | Met up with Revision 17++ 54491 | -3/Research | Identified Transdimensional Reconstructor (x2) 54491 | -3/Research | Identified Core Expander 54491 | -3/Research | Installed Core Expander, added new Utility slot 54658 | -3/Research | Found Quantum Capacitor 54719 | -3/Research | Identified Core Reset Matrix 54847 | -3/Research | Research terminal network offline 54938 | -3/Research | Discovered new exit (range 12) 54984 | -3/Research | Identified exit to Quarantine 55008 | -3/Research | Entered Quarantine 55335 | -3/Quarantine | Spotted Alpha 7 55374 | -3/Quarantine | Destroyed Alpha 7 55404 | -3/Quarantine | Found Multirail 55421 | -3/Quarantine | Found Sigix Terminator 55486 | -3/Quarantine | Found Core Stripper 55594 | -3/Quarantine | Found Subatomic Replicator 55598 | -3/Quarantine | Used Subatomic Replicator to create Alien Launcher 55603 | -3/Quarantine | Identified Supercharged Sigix Terminator 55852 | -3/Quarantine | Discovered exit to Research (range 15) 55918 | -3/Quarantine | Repaired Biometal Heavy Treads 56048 | -3/Quarantine | Repaired Lyr. Heavy Armor Plating 56163 | -3/Quarantine | Met incapacitated Sigix Warrior 56163 | -3/Quarantine | Lockdown squad dispatched 56173 | -3/Quarantine | Acquired the access code to the Sigix quarantine chamber 56178 | -3/Quarantine | Unlocked Sigix quarantine chamber 56281 | -3/Quarantine | Spotted Lightning 56281 | -3/Quarantine | Spotted Lightning 56284 | -3/Quarantine | Spotted Lightning 56315 | -3/Quarantine | Destroyed Lightning 56375 | -3/Quarantine | Destroyed Lightning 56378 | -3/Quarantine | Destroyed Lightning 56411 | -3/Quarantine | Found Exp. Targeting Computer 56414 | -3/Quarantine | Found Prototype Energy Cannon 56427 | -3/Quarantine | Found Prototype Energy Cannon 56432 | -3/Quarantine | Identified EMDS (x2) 56451 | -3/Quarantine | Found Exp. Targeting Computer 56563 | -3/Quarantine | Found Phase Armor 56623 | -3/Quarantine | Identified exit to Garrison 56623 | -3/Quarantine | Entered Garrison 56623 | -3/Garrison | Accompanied by 2 allies 56659 | -3/Garrison | Garrison Relay disabled 56777 | -3/Garrison | Spotted B-86 Titan 56800 | -3/Garrison | Triggered checkpoint 56800 | -3/Garrison | Triggered checkpoint 56856 | -3/Garrison | Destroyed 15 combat bots 56866 | -3/Garrison | Triggered checkpoint 56947 | -3/Garrison | Found Fusion Bomb Launcher 56967 | -3/Garrison | Found Fusion Bomb Launcher 56983 | -3/Garrison | Discovered exit to Research (range 10) 57095 | -3/Garrison | Garrison Relay disabled 57283 | -3/Garrison | Discovered exit to Research (range 10) 57326 | -3/Garrison | Triggered checkpoint 57379 | -3/Garrison | Garrison Relay disabled 57516 | -3/Garrison | Triggered checkpoint 57529 | -3/Garrison | Discovered exit to Research (range 12) 57562 | -3/Garrison | Expanded RIF knowledge: Coupler Efficiency 57569 | -3/Garrison | Entered Research 57569 | -2/Research | Evolved 2 slots: Utility x2 57570 | -2/Research | Identified exit to Testing 57982 | -2/Research | Identified exit to Access 58351 | -2/Research | First assault squad dispatched 58435 | -2/Research | Destroyed 9 combat bots 58444 | -2/Research | Lost 10 parts (1p2n4u3w) 58910 | -2/Research | Entered Testing 58971 | -2/Testing | Scanned by Researcher 59047 | -2/Testing | Found Prototype Processor 59047 | -2/Testing | Identified Exp. Core Analyzer 59051 | -2/Testing | Found Exp. Core Analyzer 59054 | -2/Testing | Lost 3 parts (2u1w) 59160 | -2/Testing | First assault squad dispatched 59381 | -2/Testing | Found Exp. Target Analyzer 59403 | -2/Testing | Spotted Striker 59408 | -2/Testing | Spotted Striker 59428 | -2/Testing | Destroyed Striker 59434 | -2/Testing | Destroyed Striker 59492 | -2/Testing | Spotted Alpha 7 59495 | -2/Testing | Destroyed Alpha 7 59500 | -2/Testing | Found Exp. Targeting Computer 59553 | -2/Testing | Stole the SGEMP Prototype 59613 | -2/Testing | Found Z-bomb Delivery System 60030 | -2/Testing | System corruption reached 10% 60039 | -2/Testing | Core integrity fell below 50% 60072 | -2/Testing | Found Prototype Leg 60072 | -2/Testing | Identified Myomer Exoskeleton 60127 | -2/Testing | Found Hyp. Multirail 60358 | -2/Testing | Spotted Fortress 60370 | -2/Testing | Destroyed Fortress 60373 | -2/Testing | Found Prototype Device 60373 | -2/Testing | Identified Exp. Force Field 60376 | -2/Testing | Found Hvy. Insulated Plating 60380 | -2/Testing | Found Prototype Reactor 60380 | -2/Testing | Identified Vortex Chain Reactor 60384 | -2/Testing | Found Vortex Chain Reactor 60387 | -2/Testing | Found Prototype Device 60387 | -2/Testing | Identified Thermal Barrier 60390 | -2/Testing | Found Prototype Protection 60390 | -2/Testing | Identified Centrium Heavy Armor Plating 60411 | -2/Testing | Found EM Dispersion Field 60502 | -2/Testing | Discovered new exit (range 6) 60507 | -2/Testing | Identified exit to Section 7 60510 | -2/Testing | Entered Section 7 60535 | -2/Section 7 | Garrison activated, responded to threat 60576 | -2/Section 7 | Identified exit to Garrison 60617 | -2/Section 7 | Found Adv. Powered Armor 60630 | -2/Section 7 | Spotted S7 Guard 60641 | -2/Section 7 | Destroyed S7 Guard 60651 | -2/Section 7 | Found Prototype Protection 60657 | -2/Section 7 | Found Core Regenerator 60687 | -2/Section 7 | Identified Hvy. Regenerative Plating 60741 | -2/Section 7 | Discovered exit to Access (range 8) 60742 | -2/Section 7 | Destroyed 7 combat bots 60799 | -2/Section 7 | Found Integrated Reactor 60799 | -2/Section 7 | Installed Integrated Reactor, increased core energy generation (+2%) 60964 | -2/Section 7 | Found Integrated Dissipator 60964 | -2/Section 7 | Installed Integrated Dissipator, increased core heat dissipation (+2%) 61003 | -2/Section 7 | Spotted S7 Guard 61006 | -2/Section 7 | Destroyed S7 Guard 61010 | -2/Section 7 | First assault squad dispatched 61050 | -2/Section 7 | Found Core Membrane 61050 | -2/Section 7 | Installed Core Membrane, gained immunity to corruption 61387 | -2/Section 7 | Destroyed 8 combat bots 61493 | -2/Section 7 | Spotted B-90 Cyclops 61496 | -2/Section 7 | Destroyed B-90 Cyclops 61528 | -2/Section 7 | Spotted Alpha 7 61531 | -2/Section 7 | Spotted Alpha 7 61573 | -2/Section 7 | Destroyed Alpha 7 61629 | -2/Section 7 | Destroyed Alpha 7 61642 | -2/Section 7 | Found Multirail 61934 | -2/Section 7 | Spotted B-99 Colossus 62032 | -2/Section 7 | Found LRC Insulator 62032 | -2/Section 7 | Installed LRC Insulator, gained EM resistance (25) 62041 | -2/Section 7 | Found LRC Armor 62041 | -2/Section 7 | Installed LRC Armor, increased core integrity (+250) 62290 | -2/Section 7 | Scanned by Researcher 62291 | -2/Section 7 | Intercept squad dispatched 62293 | -2/Section 7 | Spotted Tracker 62294 | -2/Section 7 | Spotted Tracker 62296 | -2/Section 7 | Destroyed Tracker 62298 | -2/Section 7 | Destroyed Tracker 62307 | -2/Section 7 | Spotted Combat Programmer 62308 | -2/Section 7 | Spotted Combat Programmer 62393 | -2/Section 7 | High security lockdown imminent 62422 | -2/Section 7 | Destroyed 17 combat bots 62473 | -2/Section 7 | High security lockdown engaged 62488 | -2/Section 7 | Destroyed Combat Programmer 62493 | -2/Section 7 | Found EMDS 62503 | -2/Section 7 | Found Prototype Special Weapon 62508 | -2/Section 7 | Found Exp. Target Analyzer 62575 | -2/Section 7 | Found Prototype Device 62575 | -2/Section 7 | Identified Exp. Phase Shifter 62578 | -2/Section 7 | Destroyed 18 combat bots 62604 | -2/Section 7 | Destroyed Investigator 62713 | -2/Section 7 | Destroyed 21 combat bots 62718 | -2/Section 7 | Entered Access 62718 | -1/Access | Evolved 2 slots: Propulsion x2 62719 | -1/Access | Loaded intel: 111 machine locations 62719 | -1/Access | Loaded intel: 67 trap records 62719 | -1/Access | Identified exit to Surface 62719 | -1/Access | Discovered exit to Surface (range 147) 62719 | -1/Access | Identified exit to Command 62719 | -1/Access | Discovered exit to Command (range 90) 62719 | -1/Access | Delivered the SGEMP Prototype to Zhirov 62719 | -1/Access | Zhirov transferred Access data 62774 | -1/Access | Identified Exp. Remote Datajack 62863 | -1/Access | Spotted B-99 Colossus 62867 | -1/Access | Spotted B-99 Colossus 62868 | -1/Access | Garrison activated, responded to threat 62883 | -1/Access | Entered Command 63039 | -1/Command | Destroyed M Guard 63040 | -1/Command | Spotted M Guard 63049 | -1/Command | Destroyed M Guard 63050 | -1/Command | Spotted Combat Programmer 63050 | -1/Command | Spotted Combat Programmer 63090 | -1/Command | Found Prototype Energy Cannon 63133 | -1/Command | First assault squad dispatched 63133 | -1/Command | Destroyed Combat Programmer 63143 | -1/Command | Found EMDS 63220 | -1/Command | Destroyed Combat Programmer 63220 | -1/Command | Destroyed all MAIN.C guards 63232 | -1/Command | Found EMDS 63269 | -1/Command | Found AEGIS Remote Shield 63274 | -1/Command | Found Zero-point Reactor 63278 | -1/Command | Found Zero-point Reactor 63303 | -1/Command | Identified Cld. Nova Cannon 63351 | -1/Command | Met MAIN.C 63351 | -1/Command | 0b10 Conduit disabled 63408 | -1/Command | Destroyed MAIN.C Shell 63409 | -1/Command | Build established: Scavenger-Mutant 63411 | -1/Command | MAIN.C activated Command garrisons 63415 | -1/Command | Zhirov used SGEMP to disable MAIN.C 63969 | -1/Command | Found Unknown Device 63969 | -1/Command | Identified Adv. Force Booster 64070 | -1/Command | Found Quantum Capacitor 64380 | -1/Command | Found Multirail 64673 | -1/Command | Discovered exit to Surface (range 8) 65128 | -1/Command | Discovered exit to Surface (range 41) 65248 | -1/Command | Found Prototype Device 65248 | -1/Command | Identified Exp. Thermal Defense Suite 65444 | -1/Command | Warped through subspace to slip node 65444 | -1/Command | Discovered new exit (range 5) 65449 | -1/Command | Entered Access_0 65450 | -1/Access_0 | Met Architect 65534 | -1/Access_0 | Architect warped through subspace 65534 | -1/Access_0 | Destroyed A8 65534 | -1/Access_0 | Subspace Access Node disabled 65534 | -1/Access_0 | Subspace Access Node disabled 65540 | -1/Access_0 | Used Core Regenerator, restored core integrity (+355) 65555 | -1/Access_0 | Destroyed 16 combat bots 65570 | -1/Access_0 | Architect warped through subspace 65600 | -1/Access_0 | A6 warped into view 65609 | -1/Access_0 | Destroyed A6 65618 | -1/Access_0 | Found Prototype Protection 65618 | -1/Access_0 | Identified Med. Regenerative Plating 65624 | -1/Access_0 | Found Prototype Device 65624 | -1/Access_0 | Identified Exp. Actuator Array 65668 | -1/Access_0 | Lost 20 parts (3p5n10u2w) 65683 | -1/Access_0 | Subspace Access Node disabled 65687 | -1/Access_0 | Architect warped through subspace 65697 | -1/Access_0 | Found Core Regenerator 65703 | -1/Access_0 | A5 warped into view 65747 | -1/Access_0 | Subspace Access Node disabled 65771 | -1/Access_0 | Destroyed A5 65779 | -1/Access_0 | Core integrity fell below 50% 65805 | -1/Access_0 | Used Core Regenerator, restored core integrity (+462) 65841 | -1/Access_0 | Warped through subspace to slip node 65841 | -1/Access_0 | Discovered exit to Surface (range 8) 65842 | -1/Access_0 | Core integrity fell below 20% 65845 | *** | Escaped! Last Messages --------------- 65823_ Penetrated by Quantum Shear. 65823_ Z-bomb Delivery System destroyed. 65825_ The unstable cave ceiling collapses. 65825_ Acquired Transdimensional Reconstructor. 65826_ Penetrated by Quantum Shear. 65827_ Acquired Cmb. Linear Gravjet. 65829_ The unstable cave ceiling collapses. 65829_ Quantum Shear penetrates Earth. 65829_ Acquired Cld. Nova Cannon. 65831_ Acquired Quantum Capacitor. 65833_ Knocked back. 65833_ Cld. Nova Cannon destroyed. 65834_ Dropped Quantum Capacitor. 65836_ Acquired Enh. Nova Cannon. 65836_ Penetrated by Quantum Shear. 65839_ The unstable cave ceiling collapses. 65839_ Penetrated by Quantum Shear. 65841_ Knocked back. 65841_ Warped through subspace, drawn to slip node. 65841_ EXIT=FOUND: SURFACE Map ----- +----------------------------------------------------+ | | | | | | | | | | | | | | | | | | | | | | | | | | | | | | | | | ?????????????????????????????????????????????????? | | ?????????????????????????????????????????????????? | | ?????????????????????????????????????????????????? | | ?????????????????????????????????????????????????? | | ?????????????????????????????????????????????????? | | ?????????????????????????????????????????????????? | | ????????????????????????###??????????????????????? | | ???????????????????????## ##?????????????????????? | | ???????????????????????# #?????????????????????? | | ???????????????????????# @ #?????????????????????? | | ??????????????????????## #?????????????????????? | | ??????????????????????# #?????????????????????? | | ??????????????????????# ##?????????????????????? | | ??????????????????????## #?????????????????????? | | ??????????????????????# #?????????????????????? | | ??????????????????????# ##?????????????????????? | | ??????????????????????# < #?????????????????????? | | ??????????????????????# ##?????????????????????? | | ??????????????????????## #??????????????????????? | | ???????????????????????####??????????????????????? | | ?????????????????????????????????????????????????? | | ?????????????????????????????????????????????????? | | ?????????????????????????????????????????????????? | | ?????????????????????????????????????????????????? | | ?????????????????????????????????????????????????? | | ?????????????????????????????????????????????????? | | ?????????????????????????????????????????????????? | | ?????????????????????????????????????????????????? | | ?????????????????????????????????????????????????? | | ?????????????????????????????????????????????????? | | ?????????????????????????????????????????????????? | | ?????????????????????????????????????????????????? | | ?????????????????????????????????????????????????? | | ?????????????????????????????????????????????????? | +----------------------------------------------------+ Best States ------------- Heat Dissipation 159 Coolant Potential 100 Energy Generation 87 Energy Capacity 2100 Matter Stores 470 Matter Capacity 800 Sight Range 16 Robot Scan Range 30 Terrain Scan Range 24 Terrain Scan Density 210 Jamming Range 16 Power Amplification 30 Armor Coverage 2400 Resistance: KI 30 Resistance: TH 50 Resistance: EM 100 Core Shielding 40 Utility Shielding 90 Weapon Shielding 90 Phase Shifting 20 Evasion (%) 73 Targeting Accuracy 12 Target Analysis 12 Core Analysis 15 Armor Integrity Analysis 66 Recoil Reduction 4 Energy Filtering 50 Particle Charging 30 Force Boost 5 Offensive Hacking 39 Item Schematics ----------------- Exp. Sensor Array | -7/Factory | Scanalyzed Hvy. Riot Gun | -7/Zion | Free Battle Cannon | -7/Zion | Free Slug Cannon | -7/Zion | Free Flamer | -7/Zion | Free Ripper | -7/Zion | Free Assault Drone Bay | -5/Zhirov | Free Exp. Heat Sink | -5/Zhirov | Free Exp. Optical Array | -5/Zhirov | Free Imp. Arc Thrower | -5/Zhirov | Free Cmb. Linear Gravjet | -3/Quarantine | Hacked Robot Schematics ------------------ None Fabricated ------------ Nothing Alien Tech Used ----------------- Integrated Reactor Core Expander Subatomic Replicator Supercharged Sigix Terminator Phase Armor Core Stripper Integrated Dissipator Core Membrane LRC Insulator LRC Armor Transdimensional Reconstructor Core Regenerator Achievements -------------- None Challenges ------------ None Game ------ Seed BiocellGravityHumpback Manual? 0 Play Time 12:44:19 Cumulative 974.5 hours Start 2019.11.20 @ 21:09:06 End 2019.11.23 @ 23:33:32 Sessions 13 Manual Loads 0 Difficulty Rogue Special Mode None Game No. 369 Rogue 369 Adventurer 0 Explorer 0 Win Type 0 Total 245 Types 213/4/11/3/3/2/9 Lore% 97 Gallery% 99 Achievement% 91 Wizard Run 0 Options --------- ASCII 0 Keyboard 0 Movement Numpad Keybinds 0 Fullscreen 1 Font 18/Terminus Map View 76x50 Tactical HUD 1 Map Filters NONE Filters NONE Steam 1 RUN: b3b16b02-88d1-48c9-97e8-66bd45667d08